{"text_format":"1","workbook":"xlsx","n_sheets":3,"sheets":["自己評価書作成メニュー","自己評価書","マスターシート"],"not_rendered":{"charts":0,"images":2,"macros":1,"external_links":0,"defined_names":247,"comments":0,"pivot_tables":0},"unopened":[],"bounds":{"document_bytes":16777216,"sheet_cells":100000,"rows_first":2000,"rows_last":500,"rows_between":2000,"halvings":0,"cell_chars":16384,"cell_head_chars":4096},"cells_cut":0,"cells_raw":0,"read":"whole","date_system":"1900"}

{"sheet":"自己評価書作成メニュー","index":0,"n_rows":14,"n_cols":7,"rows_kept":14,"cut":false,"hidden":false,"merged":[]}
[]
[]
[]
[]
[]
[null,null,null,null,null,null,"住宅性能評価 自己評価書 読込用ファイル"]
[]
[null,null,null,null,null,null,"マクロを有効にしてご利用下さい。"]
[]
[]
[]
[]
[]
[null,null,null,null,null,null,"評価する住宅の種類のボタンをクリックして下さい。"]

{"sheet":"自己評価書","index":1,"n_rows":84,"n_cols":242,"rows_kept":84,"cut":false,"hidden":true,"merged":[[83,169,83,170],[83,171,83,172],[83,173,83,174],[83,175,83,176],[83,180,83,181],[83,182,83,183],[83,184,83,185],[83,186,83,187],[80,169,80,170],[80,171,80,172],[80,173,80,174],[80,175,80,176],[80,180,80,181],[80,182,80,183],[80,184,80,185],[80,186,80,187],[81,169,81,170],[81,171,81,172],[81,173,81,174],[81,175,81,176],[81,180,81,181],[81,182,81,183],[81,184,81,185],[81,186,81,187],[82,169,82,170],[82,171,82,172],[82,173,82,174],[82,175,82,176],[82,180,82,181],[82,182,82,183],[82,184,82,185],[82,186,82,187],[77,169,77,170],[77,171,77,172],[77,173,77,174],[77,175,77,176],[77,180,77,181],[77,182,77,183],[77,184,77,185],[77,186,77,187],[78,169,78,170],[78,171,78,172],[78,173,78,174],[78,175,78,176],[78,180,78,181],[78,182,78,183],[78,184,78,185],[78,186,78,187],[79,169,79,170],[79,171,79,172],[79,173,79,174],[79,175,79,176],[79,180,79,181],[79,182,79,183],[79,184,79,185],[79,186,79,187],[74,169,74,170],[74,171,74,172],[74,173,74,174],[74,175,74,176],[74,180,74,181],[74,182,74,183],[74,184,74,185],[74,186,74,187],[75,169,75,170],[75,171,75,172],[75,173,75,174],[75,175,75,176],[75,180,75,181],[75,182,75,183],[75,184,75,185],[75,186,75,187],[76,169,76,170],[76,171,76,172],[76,173,76,174],[76,175,76,176],[76,180,76,181],[76,182,76,183],[76,184,76,185],[76,186,76,187],[71,169,71,170],[71,171,71,172],[71,173,71,174],[71,175,71,176],[71,180,71,181],[71,182,71,183],[71,184,71,185],[71,186,71,187],[72,169,72,170],[72,171,72,172],[72,173,72,174],[72,175,72,176],[72,180,72,181],[72,182,72,183],[72,184,72,185],[72,186,72,187],[73,169,73,170],[73,171,73,172],[73,173,73,174],[73,175,73,176],[73,180,73,181],[73,182,73,183],[73,184,73,185],[73,186,73,187],[68,169,68,170],[68,171,68,172],[68,173,68,174],[68,175,68,176],[68,180,68,181],[68,182,68,183],[68,184,68,185],[68,186,68,187],[69,169,69,170],[69,171,69,172],[69,173,69,174],[69,175,69,176],[69,180,69,181],[69,182,69,183],[69,184,69,185],[69,186,69,187],[70,169,70,170],[70,171,70,172],[70,173,70,174],[70,175,70,176],[70,180,70,181],[70,182,70,183],[70,184,70,185],[70,186,70,187],[65,169,65,170],[65,171,65,172],[65,173,65,174],[65,175,65,176],[65,180,65,181],[65,182,65,183],[65,184,65,185],[65,186,65,187],[66,169,66,170],[66,171,66,172],[66,173,66,174],[66,175,66,176],[66,180,66,181],[66,182,66,183],[66,184,66,185],[66,186,66,187],[67,169,67,170],[67,171,67,172],[67,173,67,174],[67,175,67,176],[67,180,67,181],[67,182,67,183],[67,184,67,185],[67,186,67,187],[62,169,62,170],[62,171,62,172],[62,173,62,174],[62,175,62,176],[62,180,62,181],[62,182,62,183],[62,184,62,185],[62,186,62,187],[63,169,63,170],[63,171,63,172],[63,173,63,174],[63,175,63,176],[63,180,63,181],[63,182,63,183],[63,184,63,185],[63,186,63,187],[64,169,64,170],[64,171,64,172],[64,173,64,174],[64,175,64,176],[64,180,64,181],[64,182,64,183],[64,184,64,185],[64,186,64,187],[59,169,59,170],[59,171,59,172],[59,173,59,174],[59,175,59,176],[59,180,59,181],[59,182,59,183],[59,184,59,185],[59,186,59,187],[60,169,60,170],[60,171,60,172],[60,173,60,174],[60,175,60,176],[60,180,60,181],[60,182,60,183],[60,184,60,185],[60,186,60,187],[61,169,61,170],[61,171,61,172],[61,173,61,174],[61,175,61,176],[61,180,61,181],[61,182,61,183],[61,184,61,185],[61,186,61,187],[56,169,56,170],[56,171,56,172],[56,173,56,174],[56,175,56,176],[56,180,56,181],[56,182,56,183],[56,184,56,185],[56,186,56,187],[57,169,57,170],[57,171,57,172],[57,173,57,174],[57,175,57,176],[57,180,57,181],[57,182,57,183],[57,184,57,185],[57,186,57,187],[58,169,58,170],[58,171,58,172],[58,173,58,174],[58,175,58,176],[58,180,58,181],[58,182,58,183],[58,184,58,185],[58,186,58,187],[53,169,53,170],[53,171,53,172],[53,173,53,174],[53,175,53,176],[53,180,53,181],[53,182,53,183],[53,184,53,185],[53,186,53,187],[54,169,54,170],[54,171,54,172],[54,173,54,174],[54,175,54,176],[54,180,54,181],[54,182,54,183],[54,184,54,185],[54,186,54,187],[55,169,55,170],[55,171,55,172],[55,173,55,174],[55,175,55,176],[55,180,55,181],[55,182,55,183],[55,184,55,185],[55,186,55,187],[50,169,50,170],[50,171,50,172],[50,173,50,174],[50,175,50,176],[50,180,50,181],[50,182,50,183],[50,184,50,185],[50,186,50,187],[51,169,51,170],[51,171,51,172],[51,173,51,174],[51,175,51,176],[51,180,51,181],[51,182,51,183],[51,184,51,185],[51,186,51,187],[52,169,52,170],[52,171,52,172],[52,173,52,174],[52,175,52,176],[52,180,52,181],[52,182,52,183],[52,184,52,185],[52,186,52,187],[47,169,47,170],[47,171,47,172],[47,173,47,174],[47,175,47,176],[47,180,47,181],[47,182,47,183],[47,184,47,185],[47,186,47,187],[48,169,48,170],[48,171,48,172],[48,173,48,174],[48,175,48,176],[48,180,48,181],[48,182,48,183],[48,184,48,185],[48,186,48,187],[49,169,49,170],[49,171,49,172],[49,173,49,174],[49,175,49,176],[49,180,49,181],[49,182,49,183],[49,184,49,185],[49,186,49,187],[44,169,44,170],[44,171,44,172],[44,173,44,174],[44,175,44,176],[44,180,44,181],[44,182,44,183],[44,184,44,185],[44,186,44,187],[45,169,45,170],[45,171,45,172],[45,173,45,174],[45,175,45,176],[45,180,45,181],[45,182,45,183],[45,184,45,185],[45,186,45,187],[46,169,46,170],[46,171,46,172],[46,173,46,174],[46,175,46,176],[46,180,46,181],[46,182,46,183],[46,184,46,185],[46,186,46,187],[41,169,41,170],[41,171,41,172],[41,173,41,174],[41,175,41,176],[41,180,41,181],[41,182,41,183],[41,184,41,185],[41,186,41,187],[42,169,42,170],[42,171,42,172],[42,173,42,174],[42,175,42,176],[42,180,42,181],[42,182,42,183],[42,184,42,185],[42,186,42,187],[43,169,43,170],[43,171,43,172],[43,173,43,174],[43,175,43,176],[43,180,43,181],[43,182,43,183],[43,184,43,185],[43,186,43,187],[38,169,38,170],[38,171,38,172],[38,173,38,174],[38,175,38,176],[38,180,38,181],[38,182,38,183],[38,184,38,185],[38,186,38,187],[39,169,39,170],[39,171,39,172],[39,173,39,174],[39,175,39,176],[39,180,39,181],[39,182,39,183],[39,184,39,185],[39,186,39,187],[40,169,40,170],[40,171,40,172],[40,173,40,174],[40,175,40,176],[40,180,40,181],[40,182,40,183],[40,184,40,185],[40,186,40,187],[35,169,35,170],[35,171,35,172],[35,173,35,174],[35,175,35,176],[35,180,35,181],[35,182,35,183],[35,184,35,185],[35,186,35,187],[36,169,36,170],[36,171,36,172],[36,173,36,174],[36,175,36,176],[36,180,36,181],[36,182,36,183],[36,184,36,185],[36,186,36,187],[37,169,37,170],[37,171,37,172],[37,173,37,174],[37,175,37,176],[37,180,37,181],[37,182,37,183],[37,184,37,185],[37,186,37,187],[33,169,33,170],[33,171,33,172],[33,173,33,174],[33,175,33,176],[33,180,33,181],[33,182,33,183],[33,184,33,185],[33,186,33,187],[20,177,32,177],[34,169,34,170],[34,171,34,172],[34,173,34,174],[34,175,34,176],[34,180,34,181],[34,182,34,183],[34,184,34,185],[34,186,34,187],[17,166,17,187],[18,166,18,176],[18,177,18,187],[19,166,19,168],[19,169,19,170],[19,171,19,172],[19,173,19,174],[20,167,32,167],[20,168,32,168],[20,169,32,170],[20,171,32,172],[20,173,32,174],[20,180,32,181],[20,178,32,178],[20,179,32,179],[20,182,32,183],[20,184,32,185],[19,182,19,183],[19,184,19,185],[20,186,32,187],[19,186,19,187],[19,175,19,176],[19,177,19,179],[19,180,19,181],[61,64,61,65],[61,66,61,67],[61,68,61,71],[61,76,61,77],[61,78,61,79],[61,82,61,84],[61,92,61,94],[61,113,61,116],[61,125,61,128],[61,147,61,148],[61,151,61,152],[61,149,61,150],[20,166,32,166],[61,153,61,154],[61,158,61,159],[61,160,61,161],[61,162,61,163],[61,164,61,165],[59,153,59,154],[59,158,59,159],[60,153,60,154],[60,158,60,159],[60,125,60,128],[60,147,60,148],[60,151,60,152],[60,149,60,150],[59,92,59,94],[59,113,59,116],[57,68,57,71],[57,76,57,77],[57,78,57,79],[57,82,57,84],[60,61,60,63],[60,64,60,65],[60,66,60,67],[60,68,60,71],[60,76,60,77],[60,160,60,161],[60,162,60,163],[60,164,60,165],[61,1,61,2],[61,3,61,4],[61,5,61,6],[61,7,61,8],[61,9,61,10],[60,82,60,84],[60,92,60,94],[61,11,61,12],[61,13,61,14],[61,15,61,16],[61,21,61,23],[61,27,61,31],[61,32,61,34],[61,40,61,41],[61,43,61,44],[61,50,61,51],[61,52,61,54],[61,55,61,56],[61,59,61,60],[61,61,61,63],[60,3,60,4],[60,5,60,6],[60,7,60,8],[60,9,60,10],[60,11,60,12],[60,13,60,14],[60,15,60,16],[60,21,60,23],[60,27,60,31],[60,32,60,34],[60,78,60,79],[60,40,60,41],[60,43,60,44],[60,50,60,51],[60,52,60,54],[60,55,60,56],[60,59,60,60],[60,113,60,116],[58,164,58,165],[59,1,59,2],[59,3,59,4],[59,5,59,6],[59,7,59,8],[59,9,59,10],[59,11,59,12],[59,13,59,14],[59,15,59,16],[59,21,59,23],[59,27,59,31],[59,32,59,34],[59,40,59,41],[59,43,59,44],[59,50,59,51],[59,52,59,54],[59,55,59,56],[59,59,59,60],[59,61,59,63],[59,125,59,128],[59,147,59,148],[59,151,59,152],[59,64,59,65],[59,66,59,67],[59,68,59,71],[59,76,59,77],[59,78,59,79],[59,82,59,84],[59,149,59,150],[59,160,59,161],[59,162,59,163],[59,164,59,165],[58,61,58,63],[58,64,58,65],[58,66,58,67],[58,68,58,71],[58,76,58,77],[58,78,58,79],[58,82,58,84],[58,92,58,94],[58,113,58,116],[58,125,58,128],[58,147,58,148],[58,151,58,152],[58,153,58,154],[58,158,58,159],[58,149,58,150],[58,160,58,161],[58,162,58,163],[57,92,57,94],[57,113,57,116],[57,125,57,128],[57,147,57,148],[57,151,57,152],[57,153,57,154],[57,158,57,159],[57,149,57,150],[57,160,57,161],[57,162,57,163],[57,164,57,165],[58,1,58,2],[58,3,58,4],[58,5,58,6],[58,7,58,8],[58,9,58,10],[58,11,58,12],[58,13,58,14],[58,15,58,16],[58,21,58,23],[58,27,58,31],[58,32,58,34],[58,40,58,41],[58,43,58,44],[58,50,58,51],[58,52,58,54],[58,55,58,56],[58,59,58,60],[56,82,56,84],[56,92,56,94],[56,113,56,116],[56,125,56,128],[56,147,56,148],[56,151,56,152],[56,153,56,154],[56,158,56,159],[56,149,56,150],[56,160,56,161],[56,162,56,163],[56,164,56,165],[57,1,57,2],[57,3,57,4],[57,5,57,6],[57,7,57,8],[57,9,57,10],[57,11,57,12],[57,13,57,14],[57,15,57,16],[57,21,57,23],[57,27,57,31],[57,32,57,34],[57,40,57,41],[57,43,57,44],[57,50,57,51],[57,52,57,54],[57,55,57,56],[57,59,57,60],[57,61,57,63],[57,64,57,65],[57,66,57,67],[55,125,55,128],[55,147,55,148],[55,151,55,152],[55,153,55,154],[55,158,55,159],[55,149,55,150],[55,160,55,161],[55,162,55,163],[55,164,55,165],[56,1,56,2],[56,3,56,4],[56,5,56,6],[56,7,56,8],[56,9,56,10],[56,11,56,12],[56,13,56,14],[56,15,56,16],[56,21,56,23],[56,27,56,31],[56,32,56,34],[56,40,56,41],[56,43,56,44],[56,50,56,51],[56,52,56,54],[56,55,56,56],[56,59,56,60],[56,61,56,63],[56,64,56,65],[56,66,56,67],[56,68,56,71],[56,76,56,77],[56,78,56,79],[54,153,54,154],[54,158,54,159],[54,149,54,150],[54,160,54,161],[54,162,54,163],[54,164,54,165],[55,1,55,2],[55,3,55,4],[55,5,55,6],[55,7,55,8],[55,9,55,10],[55,11,55,12],[55,13,55,14],[55,15,55,16],[55,21,55,23],[55,27,55,31],[55,32,55,34],[55,40,55,41],[55,43,55,44],[55,50,55,51],[55,52,55,54],[55,55,55,56],[55,59,55,60],[55,61,55,63],[55,64,55,65],[55,66,55,67],[55,68,55,71],[55,76,55,77],[55,78,55,79],[55,82,55,84],[55,92,55,94],[55,113,55,116],[53,160,53,161],[53,162,53,163],[53,164,53,165],[54,1,54,2],[54,3,54,4],[54,5,54,6],[54,7,54,8],[54,9,54,10],[54,11,54,12],[54,13,54,14],[54,15,54,16],[54,21,54,23],[54,27,54,31],[54,32,54,34],[54,40,54,41],[54,43,54,44],[54,50,54,51],[54,52,54,54],[54,55,54,56],[54,59,54,60],[54,61,54,63],[54,64,54,65],[54,66,54,67],[54,68,54,71],[54,76,54,77],[54,78,54,79],[54,82,54,84],[54,92,54,94],[54,113,54,116],[54,125,54,128],[54,147,54,148],[54,151,54,152],[52,76,52,77],[52,78,52,79],[52,82,52,84],[52,92,52,94],[52,113,52,116],[52,125,52,128],[52,147,52,148],[52,151,52,152],[52,153,52,154],[52,158,52,159],[52,149,52,150],[52,160,52,161],[52,162,52,163],[52,164,52,165],[53,52,53,54],[53,55,53,56],[53,59,53,60],[53,61,53,63],[53,64,53,65],[53,66,53,67],[53,68,53,71],[53,76,53,77],[53,78,53,79],[53,82,53,84],[53,92,53,94],[53,113,53,116],[53,125,53,128],[53,147,53,148],[53,151,53,152],[53,153,53,154],[53,158,53,159],[53,149,53,150],[52,9,52,10],[52,11,52,12],[52,13,52,14],[52,15,52,16],[52,21,52,23],[52,27,52,31],[52,32,52,34],[52,40,52,41],[52,43,52,44],[52,50,52,51],[52,52,52,54],[52,55,52,56],[52,59,52,60],[52,61,52,63],[52,64,52,65],[52,66,52,67],[52,68,52,71],[51,64,51,65],[51,66,51,67],[51,68,51,71],[51,76,51,77],[51,78,51,79],[51,82,51,84],[51,92,51,94],[51,113,51,116],[51,125,51,128],[51,147,51,148],[51,151,51,152],[51,153,51,154],[51,158,51,159],[51,149,51,150],[51,160,51,161],[51,162,51,163],[51,164,51,165],[50,76,50,77],[50,78,50,79],[50,82,50,84],[50,92,50,94],[50,113,50,116],[50,125,50,128],[50,147,50,148],[50,151,50,152],[50,153,50,154],[50,158,50,159],[50,149,50,150],[50,160,50,161],[50,162,50,163],[50,164,50,165],[51,1,51,2],[51,3,51,4],[51,5,51,6],[51,7,51,8],[51,9,51,10],[51,11,51,12],[51,13,51,14],[51,15,51,16],[51,21,51,23],[51,27,51,31],[51,32,51,34],[51,40,51,41],[51,43,51,44],[51,50,51,51],[51,52,51,54],[51,55,51,56],[51,59,51,60],[51,61,51,63],[49,92,49,94],[49,113,49,116],[49,125,49,128],[49,147,49,148],[49,151,49,152],[49,153,49,154],[49,158,49,159],[49,149,49,150],[49,160,49,161],[49,162,49,163],[49,164,49,165],[50,1,50,2],[50,3,50,4],[50,5,50,6],[50,7,50,8],[50,9,50,10],[50,11,50,12],[50,13,50,14],[50,15,50,16],[50,21,50,23],[50,27,50,31],[50,32,50,34],[50,40,50,41],[50,43,50,44],[50,50,50,51],[50,52,50,54],[50,55,50,56],[50,59,50,60],[50,61,50,63],[50,64,50,65],[50,66,50,67],[50,68,50,71],[48,147,48,148],[48,151,48,152],[48,153,48,154],[48,158,48,159],[48,149,48,150],[48,160,48,161],[48,162,48,163],[48,164,48,165],[49,1,49,2],[49,3,49,4],[49,5,49,6],[49,7,49,8],[49,9,49,10],[49,11,49,12],[49,13,49,14],[49,15,49,16],[49,21,49,23],[49,27,49,31],[49,32,49,34],[49,40,49,41],[49,43,49,44],[49,50,49,51],[49,52,49,54],[49,55,49,56],[49,59,49,60],[49,61,49,63],[49,64,49,65],[49,66,49,67],[49,68,49,71],[49,76,49,77],[49,78,49,79],[49,82,49,84],[47,158,47,159],[47,149,47,150],[47,160,47,161],[47,162,47,163],[47,164,47,165],[48,1,48,2],[48,3,48,4],[48,5,48,6],[48,7,48,8],[48,9,48,10],[48,11,48,12],[48,13,48,14],[48,15,48,16],[48,21,48,23],[48,27,48,31],[48,32,48,34],[48,40,48,41],[48,43,48,44],[48,50,48,51],[48,52,48,54],[48,55,48,56],[48,59,48,60],[48,61,48,63],[48,64,48,65],[48,66,48,67],[48,68,48,71],[48,76,48,77],[48,78,48,79],[48,82,48,84],[48,92,48,94],[48,113,48,116],[48,125,48,128],[46,162,46,163],[46,164,46,165],[47,1,47,2],[47,3,47,4],[47,5,47,6],[47,7,47,8],[47,9,47,10],[47,11,47,12],[47,13,47,14],[47,15,47,16],[47,21,47,23],[47,27,47,31],[47,32,47,34],[47,40,47,41],[47,43,47,44],[47,50,47,51],[47,52,47,54],[47,55,47,56],[47,59,47,60],[47,61,47,63],[47,64,47,65],[47,66,47,67],[47,68,47,71],[47,76,47,77],[47,78,47,79],[47,82,47,84],[47,92,47,94],[47,113,47,116],[47,125,47,128],[47,147,47,148],[47,151,47,152],[47,153,47,154],[46,59,46,60],[46,61,46,63],[46,64,46,65],[46,66,46,67],[46,68,46,71],[46,76,46,77],[46,78,46,79],[46,82,46,84],[46,92,46,94],[46,113,46,116],[46,125,46,128],[46,147,46,148],[46,151,46,152],[46,153,46,154],[46,158,46,159],[46,149,46,150],[46,160,46,161],[45,66,45,67],[45,68,45,71],[45,76,45,77],[45,78,45,79],[45,82,45,84],[45,92,45,94],[45,113,45,116],[45,125,45,128],[45,147,45,148],[45,151,45,152],[45,153,45,154],[45,158,45,159],[45,149,45,150],[45,160,45,161],[45,162,45,163],[45,164,45,165],[46,1,46,2],[46,3,46,4],[46,5,46,6],[46,7,46,8],[46,9,46,10],[46,11,46,12],[46,13,46,14],[46,15,46,16],[46,21,46,23],[46,27,46,31],[46,32,46,34],[46,40,46,41],[46,43,46,44],[46,50,46,51],[46,52,46,54],[46,55,46,56],[44,78,44,79],[44,82,44,84],[44,92,44,94],[44,113,44,116],[44,125,44,128],[44,147,44,148],[44,151,44,152],[44,153,44,154],[44,158,44,159]],"merged_total":2554,"flags":["merged_cut"]}
[]
[null,null,null,null,null,"件名："]
[]
["（住棟部分）"]
[]
[null,null,null,null,null,null,null,null,null,null,null,null,null,null,null,null,null,"１構造の安定",null,null,null,null,null,null,null,null,null,null,null,null,null,null,"1-6.",null,"地盤又は杭の許容支持力等及びその設定方法",null,null,null,null,null,null,null,null,null,null,null,null,null,null,null,"1-7.",null,"基礎の構造方法及び形式等",null,null,null,null,null,null,null,null,null,null,null,null,null,null,null,null,null,null,null,null,null,null,2,"火災時の安全",null,null,null,null,null,null,null,null,null,null,null,null,null,null,null,null,4,"維持管理への配慮",null,null,null,null,null,null,null,null,null,null,null,null,null,null,null,null,null,null,null,null,null,null,null,null,null,null,null,null,null,null,null,null,null,null,null,null,null,null,null,null,null,null,null,null,null,null,null,null,null,null,null,null,null,null,null,null,null,null,null,null,null,null,null,null,null,null,null,null,null,null,null,null,null,null,null,null,null,null,null,null,null,null,null,null,null,null,null,null,null,null,null,null,null,null,null,null,null,null,null,null,null,null,null,null,null,null,null,null,null,null,null,null,null,null,null,null,null,null,null,null,null,null,null,null,null,null,null,null,null,null,null,null,null,null,null,null,null,null,null,null,null,null,"読込種類","読込判定に使用（1: 概要、2: 等級）",2]
[null,null,null,null,null,null,null,null,null,null,null,null,null,null,null,null,null,"1-1.",null,"耐震等級(倒壊等防止)",null,null,null,null,null,null,"[0-3]",null,null,null,null,null,null,"地盤の許容応力度",null,null,null,null,null,{"$f":"IF(AO7=\"\",\"□\",\"■\")","v":"□"},null,null,null,null,null,null,"kN/㎡",null,null,null,"a.",null,"直接基礎",null,null,"構造方法",null,{"$f":"IF(BG7=\"\",\"□\",\"■\")","v":"□"},null,null,null,null,null,null,null,null,null,null,null,null,null,null,null,null,null,"2-5.",null,null,"耐火等級(開口部)",null,null,null,null,null,null,null,null,null,"[0-3]",null,null,null,null,"4-2.",null,"維持管理対策等級(共用配管)",null,null,null,null,null,null,null,null,null,null,"[0-3]",null,null,null,null,null,null,null,null,null,null,null,null,null,null,null,null,null,null,null,null,null,null,null,null,null,null,null,null,null,null,null,null,null,null,null,null,null,null,null,null,null,null,null,null,null,null,null,null,null,null,null,null,null,null,null,null,null,null,null,null,null,null,null,null,null,null,null,null,null,null,null,null,null,null,null,null,null,null,null,null,null,null,null,null,null,null,null,null,null,null,null,null,null,null,null,null,null,null,null,null,null,null,null,null,null,null,null,null,null,null,null,null,null,null,null,null,null,null,null,null,null,null,null,null,null,null,null,null,null,null,"評価の種類","〃",1]
[null,null,null,null,null,null,null,null,null,null,null,null,null,null,null,null,null,"1-2.",null,"耐震等級(損傷防止)",null,null,null,null,null,null,"[0-3]",null,null,null,null,null,null,null,null,null,null,null,null,"□","地盤改良後の数値とする",null,null,null,null,null,null,null,null,null,null,null,null,null,null,"形式",null,null,null,null,null,null,null,null,null,null,null,null,null,null,null,null,null,null,null,"2-6.",null,null,"耐火等級(開口部以外)",null,null,null,null,null,null,null,null,null,"[0-4]",null,null,null,null,"4-3.",null,"更新対策等級(共用排水管)",null,null,null,null,null,null,null,null,null,null,"[0-3]",null,null,null,null,null,null,null,null,null,null,null,null,null,null,null,null,null,null,null,null,null,null,null,null,null,null,null,null,null,null,null,null,null,null,null,null,null,null,null,null,null,null,null,null,null,null,null,null,null,null,null,null,null,null,null,null,null,null,null,null,null,null,null,null,null,null,null,null,null,null,null,null,null,null,null,null,null,null,null,null,null,null,null,null,null,null,null,null,null,null,null,null,null,null,null,null,null,null,null,null,null,null,null,null,null,null,null,null,null,null,null,null,null,null,null,null,null,null,null,null,null,null,null,null,null,null,null,null,null,null,"住宅の種類","〃",1]
[null,null,null,null,null,null,null,null,null,null,null,null,null,null,null,null,null,"1-3.",null,"免震構造物",null,null,null,null,null,null,null,null,null,null,null,null,null,"杭の許容支持力",null,null,null,null,null,{"$f":"IF(AO9=\"\",\"□\",\"■\")","v":"□"},null,null,null,null,null,null,"kN/本",null,null,null,"b.",null,"杭基礎",null,null,"杭種",null,{"$f":"IF(BG9=\"\",\"□\",\"■\")","v":"□"},null,null,null,null,null,null,null,null,null,null,null,null,null,null,null,null,null,3,"劣化の軽減",null,null,null,null,null,null,null,null,null,null,null,null,null,null,null,null,null,null,"共用排水立管の位置",null,null,null,null,null,"□","共用廊下に面する共用部分",null,null,null,null,null,null,null,null,null,null,null,null,null,null,null,null,null,null,null,null,null,null,null,null,null,null,null,null,null,null,null,null,null,null,null,null,null,null,null,null,null,null,null,null,null,null,null,null,null,null,null,null,null,null,null,null,null,null,null,null,null,null,null,null,null,null,null,null,null,null,null,null,null,null,null,null,null,null,null,null,null,null,null,null,null,null,null,null,null,null,null,null,null,null,null,null,null,null,null,null,null,null,null,null,null,null,null,null,null,null,null,null,null,null,null,null,null,null,null,null,null,null,null,null,null,null,null,null,null,null,null,null,null,null,"1.3 免震構造物 免震建築物","読込データとして使用",{"$f":"IF(work_tower_N01_3=マスターシート!C4, \"○\", \"\")","v":""}]
[null,null,null,null,null,null,null,null,null,null,null,null,null,null,null,null,null,"1-4.",null,"耐風等級",null,null,null,null,null,null,"[1-2]",null,null,null,null,null,null,"杭状改良地盤の許容支持力度",null,null,null,null,null,{"$f":"IF(AO10=\"\",\"□\",\"■\")","v":"□"},null,null,null,null,null,null,"kN/㎡",null,null,null,null,null,null,null,null,null,null,null,null,null,null,null,null,null,null,null,null,null,null,null,null,null,null,null,null,null,null,"3-1.","劣化対策等級",null,null,null,null,null,null,null,null,null,"[1-3]",null,null,null,null,null,null,null,null,null,null,null,null,"□","外壁面、吹き抜け等の住戸外周部",null,null,null,null,null,null,null,null,null,null,null,null,null,null,null,null,null,null,null,null,null,null,null,null,null,null,null,null,null,null,null,null,null,null,null,null,null,null,null,null,null,null,null,null,null,null,null,null,null,null,null,null,null,null,null,null,null,null,null,null,null,null,null,null,null,null,null,null,null,null,null,null,null,null,null,null,null,null,null,null,null,null,null,null,null,null,null,null,null,null,null,null,null,null,null,null,null,null,null,null,null,null,null,null,null,null,null,null,null,null,null,null,null,null,null,null,null,null,null,null,null,null,null,null,null,null,null,null,null,null,null,null,null,null,"1.3 免震構造物 その他","〃",{"$f":"IF(work_tower_N01_3=マスターシート!C5, \"○\", \"\")","v":""}]
[null,null,null,null,null,null,null,null,null,null,null,null,null,null,null,null,null,"1-5.",null,"耐積雪等級",null,null,null,null,null,null,"[0-2]",null,null,null,null,null,null,"杭状改良地盤の許容支持力",null,null,null,null,null,{"$f":"IF(AO11=\"\",\"□\",\"■\")","v":"□"},null,null,null,null,null,null,"kN/本",null,null,null,null,null,null,null,null,"杭径",null,null,null,null,null,null,null,null,null,null,"cm",null,null,null,null,null,null,null,null,null,null,null,null,null,null,null,null,null,null,null,null,null,null,null,null,null,null,null,null,null,null,null,null,null,null,"□","バルコニー",null,null,null,null,null,null,null,null,null,null,null,null,null,null,null,null,null,null,null,null,null,null,null,null,null,null,null,null,null,null,null,null,null,null,null,null,null,null,null,null,null,null,null,null,null,null,null,null,null,null,null,null,null,null,null,null,null,null,null,null,null,null,null,null,null,null,null,null,null,null,null,null,null,null,null,null,null,null,null,null,null,null,null,null,null,null,null,null,null,null,null,null,null,null,null,null,null,null,null,null,null,null,null,null,null,null,null,null,null,null,null,null,null,null,null,null,null,null,null,null,null,null,null,null,null,null,null,null,null,null,null,null,null,null,"1.6 地盤調査方法等","〃",{"$f":"work_tower_N01_6_JIBAN_TYOUSA_1 & work_tower_N01_6_JIBAN_TYOUSA_2 & work_tower_N01_6_JIBAN_TYOUSA_3 & work_tower_N01_6_JIBAN_TYOUSA_4","v":""}]
[null,null,null,null,null,null,null,null,null,null,null,null,null,null,null,null,null,null,null,null,null,null,null,null,null,null,null,null,null,null,null,null,null,"地盤調査方法等",null,null,null,null,null,null,null,null,null,null,null,null,null,null,null,null,null,null,null,null,null,"杭長",null,null,null,null,null,null,null,null,null,null,"ｍ",null,null,null,null,null,null,null,null,null,null,null,null,null,null,null,null,null,null,null,null,null,null,null,null,null,null,null,null,null,null,null,null,null,null,"□","住戸専用部",null,null,null,null,null,null,null,null,null,null,null,null,null,null,null,null,null,null,null,null,null,null,null,null,null,null,null,null,null,null,null,null,null,null,null,null,null,null,null,null,null,null,null,null,null,null,null,null,null,null,null,null,null,null,null,null,null,null,null,null,null,null,null,null,null,null,null,null,null,null,null,null,null,null,null,null,null,null,null,null,null,null,null,null,null,null,null,null,null,null,null,null,null,null,null,null,null,null,null,null,null,null,null,null,null,null,null,null,null,null,null,null,null,null,null,null,null,null,null,null,null,null,null,null,null,null,null,null,null,null,null,null,null,null,"1.7 杭径","〃",{"$f":"IF(work_tower_N01_7_KUI_KEI_max <> \"\", work_tower_N01_7_KUI_KEI_max, \"\") & IF(work_tower_N01_7_KUI_KEI_max <> \"\", IF(work_tower_N01_7_KUI_KEI_max <> \"\", \" \", \"\"), \"\") & IF(work_tower_N01_7_KUI_KEI_min <> \"\", work_tower_N01_7_KUI_KEI_min, \"\")","v":""},{"$f":"IF(work_tower_N01_7_KUI_KEI_max <> \"\", \"最大値：\" & work_tower_N01_7_KUI_KEI_max, \"\") & IF(work_tower_N01_7_KUI_KEI_max <> \"\", IF(work_tower_N01_7_KUI_KEI_max <> \"\", \" \", \"\"), \"\") & IF(work_tower_N01_7_KUI_KEI_min <> \"\", \"最小値：\" & work_tower_N01_7_KUI_KEI_min, \"\")","v":""}]
[null,null,null,null,null,null,null,null,null,null,null,null,null,null,null,null,null,null,null,null,null,null,null,null,null,null,null,null,null,null,null,null,null,null,null,null,null,null,null,null,null,null,null,null,null,null,null,null,null,null,null,null,null,null,null,null,null,null,null,null,null,null,null,null,null,null,null,null,null,null,null,null,null,null,null,null,null,null,null,null,null,null,null,null,null,null,null,null,null,null,null,null,null,null,null,null,null,null,null,null,null,"□","その他",null,null,null,null,null,null,null,null,null,null,null,null,null,null,null,null,null,null,null,null,null,null,null,null,null,null,null,null,null,null,null,null,null,null,null,null,null,null,null,null,null,null,null,null,null,null,null,null,null,null,null,null,null,null,null,null,null,null,null,null,null,null,null,null,null,null,null,null,null,null,null,null,null,null,null,null,null,null,null,null,null,null,null,null,null,null,null,null,null,null,null,null,null,null,null,null,null,null,null,null,null,null,null,null,null,null,null,null,null,null,null,null,null,null,null,null,null,null,null,null,null,null,null,null,null,null,null,null,null,null,null,null,null,null,"1.7 杭長","〃",{"$f":"IF(work_tower_N01_7_KUI_TYOU_max <> \"\", work_tower_N01_7_KUI_TYOU_max, \"\") & IF(work_tower_N01_7_KUI_TYOU_max <> \"\", IF(work_tower_N01_7_KUI_TYOU_min <> \"\", \" \", \"\"), \"\") & IF(work_tower_N01_7_KUI_TYOU_min <> \"\", work_tower_N01_7_KUI_TYOU_min, \"\")","v":""},{"$f":"IF(work_tower_N01_7_KUI_TYOU_max <> \"\", \"最大値：\" & work_tower_N01_7_KUI_TYOU_max, \"\") & IF(work_tower_N01_7_KUI_TYOU_max <> \"\", IF(work_tower_N01_7_KUI_TYOU_min <> \"\", \" \", \"\"), \"\") & IF(work_tower_N01_7_KUI_TYOU_min <> \"\", \"最小値：\" & work_tower_N01_7_KUI_TYOU_min, \"\")","v":""}]
[null,null,null,null,null,null,null,null,null,null,null,null,null,null,null,null,null,null,null,null,null,null,null,null,null,null,null,null,null,null,null,null,null,"地盤改良方法",null,null,null,null,null,null,null,null,null,null,null,null,null,null,null,null,null,null,null,null,null,null,null,null,null,null,null,null,null,null,null,null,null,null,null,null,null,null,null,null,null,null,null,null,null,null,null,null,null,null,null,null,null,null,null,null,null,null,null,null,null,"その他備考",null,null,null,null,null,""]
[]
[null,null,null,null,null,null,null,null,null,null,null,null,null,null,null,null,null,null,null,null,null,null,null,null,null,null,null,null,null,null,null,null,null,null,null,null,null,null,null,null,null,null,null,null,null,null,null,null,null,null,null,null,null,null,null,null,null,null,null,null,null,"※その２：メゾネットの場合",null,null,null,null,null,null,null,null,null,null,null,null,null,null,null,null,null,null,null,null,null,null,null,null,null,null,null,null,null,null,null,null,null,null,null,null,null,null,null,null,null,null,null,null,null,null,"※方位別開口比の値が100の場合には、[%以上]を[%]と読み替える。",null,null,null,null,null,null,null,null,null,null,null,null,null,null,null,null,null,null,"相当スラブ厚：0:該当なし　a:27cm以上　b:20cm以上　c:15cm以上　d:11cm以上　e:その他"]
["（住戸部分）",null,null,null,null,null,null,null,null,null,null,null,null,null,null,null,null,null,null,null,null,null,null,null,null,null,null,null,null,null,null,null,null,null,null,null,null,null,null,null,null,null,null,null,null,null,null,null,null,null,null,null,null,null,null,null,null,null,null,null,null,null,null,null,null,null,null,null,null,null,null,null,null,null,null,null,null,null,null,null,null,null,null,null,null,null,null,null,null,null,null,null,null,null,null,null,null,null,null,null,null,null,null,null,null,null,null,null,"※方位別開口比の値が[-]の場合には、[0%]と読み替える。",null,null,null,null,null,null,null,null,null,null,null,null,null,null,null,null,null,null,"レベル低減量：0:該当なし　a:30db　b:25db　c:20db　d:15db　e:その他"]
["通し番号","住戸番号　新",null,"住戸番号",null,"階",null,"タイプ",null,"居室の床面積",null,"専有部分の面積",null,"バルコニー等専用使用部分の面積",null,"合計床面積",null,"住戸への経路（共用階段）","住戸への経路（共用廊下）","住戸への経路（エレベーター）","界壁","界床",null,null,"2.火災時の安全",null,null,null,null,null,null,null,null,null,null,null,null,null,null,null,null,null,null,null,null,null,"4.維持管理・更新対策",null,null,null,null,null,null,null,null,null,null,null,null,null,null,null,null,null,null,null,null,null,null,null,null,null,null,null,"5.温熱",null,null,null,null,null,null,null,null,null,null,"6.空気環境",null,null,null,null,null,null,null,null,null,null,null,null,null,null,null,null,null,null,null,null,null,"7.光・視環境",null,null,null,null,null,"　8.音環境",null,null,null,null,null,null,null,null,null,null,null,null,null,null,null,null,null,null,null,null,null,null,null,null,null,null,null,null,"9.高齢",null,"10.防犯",null,null,null,null,null,null,null,null,null,null,null,null,null,null,null,null,null,null,null,null,null,"10.防犯"]
[null,null,null,null,null,null,null,null,null,null,null,null,null,null,null,null,null,null,null,null,null,null,null,null,1,2,"3.避難安全対策",null,null,null,null,null,null,null,null,null,"4.脱出対策",null,null,null,null,null,null,null,null,7,1,"4.更新対策",null,null,null,null,null,null,null,null,null,null,null,null,null,null,null,null,null,null,null,null,null,null,null,null,null,null,1,null,null,null,null,null,2,null,null,null,null,"1.ホルムアルデヒドﾞ対策",null,null,null,null,"2.換気対策",null,null,null,null,null,null,null,null,null,null,null,null,null,null,null,null,1,"2.方位別開口比",null,null,null,null,"1.重量床衝撃音対策",null,null,null,null,null,null,null,null,null,null,null,null,"2．軽量床衝撃音対策",null,null,null,null,null,null,null,null,null,null,"透過損失等級",null,null,null,null,1,2,"建物出入り口の階",null,null,null,null,null,null,null,null,null,null,"建物出入り口の以外の階",null,null,null,null,null,null,null,null,null,null,"1.開口部の侵入防止対策（３）",null,null,null,null,null,null,null,null,null,null,"1.開口部の侵入防止対策（４）"]
[null,null,null,null,null,null,null,null,null,null,null,null,null,null,null,null,null,null,null,null,null,null,null,null,"感知警報装置（自住戸）","感知警報装置（他住戸）","該当なし","排煙形式",null,null,null,null,"平面形状",null,null,"隔壁開口部等級","該当なし","直通バルコニー","隣戸バルコニー","避難器具",null,null,"その他",null,null,"界壁及び界床","維持管理（専用配管）","該当なし","（その１）",null,null,null,null,null,null,null,null,"（その２）",null,null,null,null,null,null,null,null,"間取りの変更の障害",null,"計算方法",null,null,null,"省エネルギー対策",null,"断熱等性能",null,null,null,null,null,"一次エネルギー消費量",null,null,null,null,"使用建材",null,null,"等級",null,"居室",null,null,null,null,"便所",null,null,null,"浴室",null,null,null,"台所",null,null,null,"単純開口率","北","東","南","西","真上","対策等級・相当スラブ厚の区別",null,null,null,"対策等級",null,null,null,"相当スラブ厚",null,null,null,"対策等級・レベル低減量の区別",null,null,null,"対策等級",null,null,null,"ﾚﾍﾞﾙ低減量",null,null,null,3,"4.外壁開口部",null,null,null,"高齢者等配慮(専用部分)","高齢者等配慮(共用部分)","住戸位置",null,null,"a",null,"b",null,"b",null,"c",null,"住戸位置",null,null,"a",null,"b(bⅰ)",null,"bⅱ",null,"c",null,"住戸位置",null,null,"a",null,"b(bⅰ)",null,"bⅱ",null,"c",null,"住戸位置",null,null,"a",null,"b(bⅰ)",null,"bⅱ",null,"c",null,"2-1選択","2-2選択","2-3選択","2-4選択","2-7選択","4-1選択","4-4選択","5-1選択","5-2選択","6-1選択","6-2選択","7-1選択","7-2選択","8-1選択","対策等級",null,null,null,"相当スラブ厚",null,null,null,"8-2選択","対策等級",null,null,null,"ﾚﾍﾞﾙ低減量",null,null,null,"8-3選択","8-4選択","9-1選択","9-2選択","10-1選択","前処理（出入り口","前処理（開口部（共用部等）","前処理（開口部（バルコニー等）","前処理（その他開口部",null,null,null,null,null,null,null,null,null,"※通常非表示読込項目"]
[null,null,null,null,null,null,null,null,null,null,null,null,null,null,null,null,null,null,null,null,null,null,null,null,null,null,null,null,null,null,null,null,null,null,null,null,null,null,null,null,"種類",null,null,"種類",null,null,null,null,"地上･地下･その他","階","躯体天井高",null,"最も低い部分",null,null,null,null,"地上･地下･その他","階","躯体天井高",null,"最も低い部分",null,null,null,null,null,null,null,null,null,null,null,null,null,null,"外皮平均熱貫流率",null,"冷房期の平均日射熱取得率",null,null,null,"床面積当たりの設計一次エネルギー消費量",null,null,"製材等","特定建材","その他","内装材","天井裏等","機械換気","その他","その他内容",null,null,"該当なし","機械換気設備","換気のできる窓","なし","該当なし","機械換気設備","換気のできる窓","なし","該当なし","機械換気設備","換気のできる窓","なし",null,null,null,null,null,null,null,null,null,null,"上階",null,"下階",null,"上階",null,"下階",null,null,null,null,null,"上階",null,"下階",null,"上階",null,"下階",null,"界壁","北","東","南","西",null,null,"建物出入口の存する階","地下･地上･屋上","階数","出入口",null,"開口部（共用部等）",null,"開口部（バルコニー等）",null,"その他開口部",null,"建物出入口の存する階","地下･地上･屋上","階数","出入口",null,"開口部（共用部等）",null,"開口部（バルコニー等）",null,"その他開口部",null,"建物出入口の存する階","地下･地上･屋上","階数","出入口",null,"開口部（共用部等）",null,"開口部（バルコニー等）",null,"その他開口部",null,"建物出入口の存する階","地下･地上･屋上","階数","出入口",null,"開口部（共用部等）",null,"開口部（バルコニー等）",null,"その他開口部",null,null,null,null,null,null,null,null,null,null,null,null,null,null,null,"上階",null,"下階",null,"上階",null,"下階",null,null,"上階",null,"下階",null,"上階",null,"下階",null,null,null,null,null,null,null,null,null,null,null,null,null,null,null,null,null,null,null,"住棟の選択・非選択のチェックボックスの作成場所（必須のチェックボックスも含む）"]
[null,null,null,null,null,null,null,null,null,null,null,null,null,null,null,null,null,null,null,null,null,null,null,null,null,null,null,null,null,null,null,null,null,null,null,null,null,null,null,null,null,null,null,null,null,null,null,null,null,null,null,null,"部位",null,null,"内法高さ",null,null,null,null,null,"部位",null,null,"内法高さ",null,null,null,null,null,null,null,null,null,null,null,null,null,null,null,null,null,null,null,null,null,null,null,null,null,null,null,null,null,null,null,null,null,null,null,null,null,null,null,null,null,null,null,null,null,null,null,null,null,null,null,null,"最高","最低","最高","最低","最高","最低","最高","最低",null,null,null,null,"最高","最低","最高","最低","最高","最低","最高","最低",null,null,null,null,null,null,null,null,null,null,null,null,null,null,null,null,null,null,null,null,null,null,null,null,null,null,null,null,null,null,null,null,null,null,null,null,null,null,null,null,null,null,null,null,null,null,null,null,null,null,null,null,null,null,null,null,null,null,null,null,null,null,null,null,null,"最高","最低","最高","最低","最高","最低","最高","最低",null,"最高","最低","最高","最低","最高","最低","最高","最低",null,null,null,null,null,null,null,null,null,null,null,null,null,null,null,null,null,null,1,"1-1.",null,{"$f":"IF(OR(CL7=\"\"),\"\",1)","v":""},"2-5."]
[null,null,null,null,null,null,null,null,null,null,null,null,null,null,null,null,null,null,null,null,null,null,null,null,null,null,null,null,null,null,null,null,null,null,null,null,null,null,null,null,null,null,null,null,null,null,null,null,null,null,null,null,null,null,null,null,null,null,null,null,null,null,null,null,null,null,null,null,null,null,null,null,null,null,null,null,null,null,null,null,null,null,null,null,null,null,null,null,null,null,null,null,null,null,null,null,null,null,null,null,null,null,null,null,null,null,null,null,null,null,null,null,null,null,null,null,null,null,null,null,null,null,null,null,null,null,null,null,null,null,null,null,null,null,null,null,null,null,null,null,null,null,null,null,null,null,null,null,null,null,null,null,null,null,null,null,null,null,null,null,null,null,null,null,null,null,null,null,null,null,null,null,null,null,null,null,null,null,null,null,null,null,null,null,null,null,null,null,null,null,null,null,null,null,null,null,null,null,null,null,null,null,null,null,null,null,null,null,null,null,null,null,null,null,null,null,null,null,null,null,null,null,null,null,null,null,null,null,null,null,null,null,null,null,null,null,null,{"$f":"IF(OR(AB8=\"\"),\"\",1)","v":""},"1-2.",null,{"$f":"IF(OR(CL8=\"\"),\"\",1)","v":""},"2-6."]
[null,null,null,null,null,null,null,null,null,null,null,null,null,null,null,null,null,null,null,null,null,null,null,null,null,null,null,null,null,null,null,null,null,null,null,null,null,null,null,null,null,null,null,null,null,null,null,null,null,null,null,null,null,null,null,null,null,null,null,null,null,null,null,null,null,null,null,null,null,null,null,null,null,null,null,null,null,null,null,null,null,null,null,null,null,null,null,null,null,null,null,null,null,null,null,null,null,null,null,null,null,null,null,null,null,null,null,null,null,null,null,null,null,null,null,null,null,null,null,null,null,null,null,null,null,null,null,null,null,null,null,null,null,null,null,null,null,null,null,null,null,null,null,null,null,null,null,null,null,null,null,null,null,null,null,null,null,null,null,null,null,null,null,null,null,null,null,null,null,null,null,null,null,null,null,null,null,null,null,null,null,null,null,null,null,null,null,null,null,null,null,null,null,null,null,null,null,null,null,null,null,null,null,null,null,null,null,null,null,null,null,null,null,null,null,null,null,null,null,null,null,null,null,null,null,null,null,null,null,null,null,null,null,null,null,null,null,1,"1-3."]
[null,null,null,null,null,null,null,null,null,null,null,null,null,null,null,null,null,null,null,null,null,null,null,null,null,null,null,null,null,null,null,null,null,null,null,null,null,null,null,null,null,null,null,null,null,null,null,null,null,null,null,null,null,null,null,null,null,null,null,null,null,null,null,null,null,null,null,null,null,null,null,null,null,null,null,null,null,null,null,null,null,null,null,null,null,null,null,null,null,null,null,null,null,null,null,null,null,null,null,null,null,null,null,null,null,null,null,null,null,null,null,null,null,null,null,null,null,null,null,null,null,null,null,null,null,null,null,null,null,null,null,null,null,null,null,null,null,null,null,null,null,null,null,null,null,null,null,null,null,null,null,null,null,null,null,null,null,null,null,null,null,null,null,null,null,null,null,null,null,null,null,null,null,null,null,null,null,null,null,null,null,null,null,null,null,null,null,null,null,null,null,null,null,null,null,null,null,null,null,null,null,null,null,null,null,null,null,null,null,null,null,null,null,null,null,null,null,null,null,null,null,null,null,null,null,null,null,null,null,null,null,null,null,null,null,null,null,{"$f":"IF(AB10=\"\",\"\",1)","v":""},"1-4.",null,1,"3-1."]
[null,null,null,null,null,null,null,null,null,null,null,null,null,null,null,null,null,null,null,null,null,null,null,null,null,null,null,null,null,null,null,null,null,null,null,null,null,null,null,null,null,null,null,null,null,null,null,null,null,null,null,null,null,null,null,null,null,null,null,null,null,null,null,null,null,null,null,null,null,null,null,null,null,null,null,null,null,null,null,null,null,null,null,null,null,null,null,null,null,null,null,null,null,null,null,null,null,null,null,null,null,null,null,null,null,null,null,null,null,null,null,null,null,null,null,null,null,null,null,null,null,null,null,null,null,null,null,null,null,null,null,null,null,null,null,null,null,null,null,null,null,null,null,null,null,null,null,null,null,null,null,null,null,null,null,null,null,null,null,null,null,null,null,null,null,null,null,null,null,null,null,null,null,null,null,null,null,null,null,null,null,null,null,null,null,null,null,null,null,null,null,null,null,null,null,null,null,null,null,null,null,null,null,null,null,null,null,null,null,null,null,null,null,null,null,null,null,null,null,null,null,null,null,null,null,null,null,null,null,null,null,null,null,null,null,null,null,{"$f":"IF(AB11=\"\",\"\",1)","v":""},"1-5."]
[null,null,null,null,null,null,null,null,null,null,null,null,null,null,null,null,null,null,null,null,null,null,null,null,null,null,null,null,null,null,null,null,null,null,null,null,null,null,null,null,null,null,null,null,null,null,null,null,null,null,null,null,null,null,null,null,null,null,null,null,null,null,null,null,null,null,null,null,null,null,null,null,null,null,null,null,null,null,null,null,null,null,null,null,null,null,null,null,null,null,null,null,null,null,null,null,null,null,null,null,null,null,null,null,null,null,null,null,null,null,null,null,null,null,null,null,null,null,null,null,null,null,null,null,null,null,null,null,null,null,null,null,null,null,null,null,null,null,null,null,null,null,null,null,null,null,null,null,null,null,null,null,null,null,null,null,null,null,null,null,null,null,null,null,null,null,null,null,null,null,null,null,null,null,null,null,null,null,null,null,null,null,null,null,null,null,null,null,null,null,null,null,null,null,null,null,null,null,null,null,null,null,null,null,null,null,null,null,null,null,null,null,null,null,null,null,null,null,null,null,null,null,null,null,null,null,null,null,null,null,null,null,null,null,null,null,null,1,"1-6.",null,{"$f":"IF(IF8=1,\"\",1)","v":""},"4-2."]
[null,null,null,null,null,null,null,null,null,null,null,null,null,null,null,null,null,null,null,null,null,null,null,null,null,null,null,null,null,null,null,null,null,null,null,null,null,null,null,null,null,null,null,null,null,null,null,null,null,null,null,null,null,null,null,null,null,null,null,null,null,null,null,null,null,null,null,null,null,null,null,null,null,null,null,null,null,null,null,null,null,null,null,null,null,null,null,null,null,null,null,null,null,null,null,null,null,null,null,null,null,null,null,null,null,null,null,null,null,null,null,null,null,null,null,null,null,null,null,null,null,null,null,null,null,null,null,null,null,null,null,null,null,null,null,null,null,null,null,null,null,null,null,null,null,null,null,null,null,null,null,null,null,null,null,null,null,null,null,null,null,null,null,null,null,null,null,null,null,null,null,null,null,null,null,null,null,null,null,null,null,null,null,null,null,null,null,null,null,null,null,null,null,null,null,null,null,null,null,null,null,null,null,null,null,null,null,null,null,null,null,null,null,null,null,null,null,null,null,null,null,null,null,null,null,null,null,null,null,null,null,null,null,null,null,null,null,1,"1-7.",null,{"$f":"IF(IF8=1,\"\",1)","v":""},"4-3."]
[null,null,null,null,null,null,null,null,null,null,null,null,null,null,null,null,null,null,null,null,null,null,null,null,null,null,null,null,null,null,null,null,null,null,null,null,null,null,null,null,null,null,null,null,null,null,null,null,null,null,null,null,null,null,null,null,null,null,null,null,null,null,null,null,null,null,null,null,null,null,null,null,null,null,null,null,null,null,null,null,null,null,null,null,null,null,null,null,null,null,null,null,null,null,null,null,null,null,null,null,null,null,null,null,null,null,null,null,null,null,null,null,null,null,null,null,null,null,null,null,null,"[0a|e]","[0a|e]","[0a|e]","[0a|e]",null,null,null,null,null,null,null,null,"[0a|e]","[0a|e]","[0a|e]","[0a|e]",null,null,null,null,null,null,null,null,null,null,null,null,null,null,null,null,null,null,null,null,null,null,null,null,null,null,null,null,null,null,null,null,null,null,null,null,null,null,null,null,null,null,null,null,null,null,null,null,null,null,null,null,null,null,null,null,null,null,null,null,null,null,null,null,null,null,null,null,null,"[0a|e]","[0a|e]","[0a|e]","[0a|e]",null,null,null,null,null,"[0a|e]","[0a|e]","[0a|e]","[0a|e]"]
[null,null,null,null,null,null,null,null,null,null,null,null,null,null,null,null,null,null,null,null,null,null,null,null,"[1|4]","[0|4]",null,null,null,null,null,null,null,null,null,"[1|3]",null,null,null,null,null,null,null,null,null,"[0|4]","[0|3]",null,null,null,null,null,null,null,null,null,null,null,null,null,null,null,null,null,null,null,null,null,null,null,null,null,"地域区分","[1|4]","地域区分","[1|5]",null,null,null,null,"地域区分","[1 4 5 6]",null,null,null,null,null,null,"[0|3]","[023]",null,null,null,null,null,null,null,null,null,null,null,null,null,null,null,null,null,"％以上","％以上","％以上","％以上","％以上","％以上",null,null,null,null,"[0|5]","[0|5]","[0|5]","[0|5]",null,null,null,null,null,null,null,null,"[0|5]","[0|5]","[0|5]","[0|5]",null,null,null,null,"[0|4]","[0|3]","[0|3]","[0|3]","[0|3]","[1|5]","[0|5]",null,null,null,null,null,null,null,null,null,null,null,null,null,null,null,null,null,null,null,null,null,null,null,null,null,null,null,null,null,null,null,null,null,null,null,null,null,null,null,null,null,null,null,null,null,null,null,null,null,null,null,null,null,null,null,null,null,null,"[0|5]","[0|5]","[0|5]","[0|5]",null,null,null,null,null,"[0|5]","[0|5]","[0|5]","[0|5]"]
[]
[null,null,null,null,null,null,null,null,null,null,null,null,null,null,null,null,null,null,null,null,null,null,null,null,null,null,null,null,null,null,null,null,null,null,null,null,null,null,null,null,null,null,null,null,null,null,null,null,null,null,null,null,null,null,null,null,null,null,null,null,null,null,null,null,null,null,null,null,null,null,null,null,null,null,null,null,"ＵＡ",null,"ηＡ",null,null,null,"MJ/㎡・年"]
[]
[{"$f":" ROW(A34) - ROW(_row) + 1","v":0},null,null,{"$f":"IF(B34=\"\",\"\",B34)","v":""},null,null,null,null,null,null,null,null,null,null,null,null,null,null,null,null,null,null,null,null,null,null,null,null,null,null,null,null,null,null,null,null,null,null,null,null,null,null,null,null,null,null,null,null,null,{"$f":"IF(GM34=1,IF(F34=\"\",\"\",F34),\"\")","v":""},null,null,null,null,null,null,null,null,null,null,null,null,null,null,null,null,null,null,null,null,null,null,null,null,null,null,null,null,null,null,null,null,null,null,null,null,null,null,null,null,null,null,null,null,null,null,null,null,null,null,null,null,null,null,null,null,null,null,null,null,null,null,null,null,null,null,null,null,null,null,null,null,null,null,null,null,null,null,null,null,null,null,null,null,null,null,null,null,null,null,null,null,null,null,null,null,{"$f":"IF(F34=\"\",\"\",F34)","v":""},null,null,null,null,null,null,null,null,null,null,{"$f":"IF(OR(IF(OR(FC34=\"\",FC34=\"無し\"),\"\",1)=1,IF(OR(FE34=\"\",FE34=\"無し\"),\"\",1)=1,IF(OR(FG34=\"\",FG34=\"無し\"),\"\",1)=1,IF(OR(FI34=\"\",FI34=\"無し\"),\"\",1)=1),IF(F34=\"\",\"\",F34),\"\")","v":""},null,null,null,null,null,null,null,null,null,null,{"$f":"IF(OR(IF(OR(FN34=\"\",FN34=\"無し\"),\"\",1)=1,IF(OR(FP34=\"\",FP34=\"無し\"),\"\",1)=1,IF(OR(FR34=\"\",FR34=\"無し\"),\"\",1)=1,IF(OR(FT34=\"\",FT34=\"無し\"),\"\",1)=1),IF(F34=\"\",\"\",F34),\"\")","v":""},null,null,null,null,null,null,null,null,null,null,{"$f":"IF(OR(IF(OR(FY34=\"\",FY34=\"無し\"),\"\",1)=1,IF(OR(GA34=\"\",GA34=\"無し\"),\"\",1)=1,IF(OR(GC34=\"\",GC34=\"無し\"),\"\",1)=1,IF(OR(GE34=\"\",GE34=\"無し\"),\"\",1)=1),IF(F34=\"\",\"\",F34),\"\")","v":""},null,null,null,null,null,null,null,null,{"$f":"IF(Y34<>\"\",1,\"\")","v":""},{"$f":"IF(Z34<>\"\",1,\"\")","v":""},{"$f":"IF(OR(AA34=\"○\",AB34<>\"\",AG34<>\"\",AJ34<>\"\"),1,\"\")","v":""},{"$f":"IF(OR(AK34=\"○\",AL34=\"○\",AM34=\"○\",AN34=\"○\",AQ34=\"○\"),1,\"\")","v":""},{"$f":"IF(OR(AT34=\"\"),\"\",1)","v":""},1,{"$f":"IF(OR(AY34<>\"\",BA34=\"はり\",BA34=\"傾斜屋根\",BA34=\"その他\",BD34<>\"\"),1,\"\")","v":""},{"$f":"IF(OR(BQ34<>\"\",BU34<>\"\",BV34<>\"\",BW34<>\"\",BX34<>\"\"),1,\"\")","v":""},{"$f":"IF(OR(CC34<>\"\",CD34<>\"\"),1,\"\")","v":""},{"$f":"IF(OR(CH34=\"○\",CI34=\"○\",CJ34=\"○\",CK34=1,CK34=2,CK34=3,CL34=1,CL34=2,CL34=3),1,\"\")","v":""},{"$f":"IF(OR(CM34=\"○\",CN34=\"○\",CS34=\"○\",CT34=\"○\",CW34=\"○\",CX34=\"○\",DA34=\"○\",DB34=\"○\"),1,\"\")","v":""},{"$f":"IF(DD34=\"\",\"\",1)","v":""},{"$f":"IF(OR(DE34<>\"\",DF34<>\"\",DG34<>\"\",DH34<>\"\",DI34<>\"\"),1,\"\")","v":""},{"$f":"IF(OR(GU34=1,GV34=1,GW34=1,GX34=1,GY34=1,GZ34=1,HA34=1,HB34=1),\"○\",\"\")","v":""},{"$f":"IF(OR(DN34=\"\",DN34=0),\"\",1)","v":""},{"$f":"IF(OR(DO34=\"\",DO34=0),\"\",1)","v":""},{"$f":"IF(OR(DP34=\"\",DP34=0),\"\",1)","v":""},{"$f":"IF(OR(DQ34=\"\",DQ34=0),\"\",1)","v":""},{"$f":"IF(OR(DR34=\"\",DR34=0),\"\",1)","v":""},{"$f":"IF(OR(DS34=\"\",DS34=0),\"\",1)","v":""},{"$f":"IF(OR(DT34=\"\",DT34=0),\"\",1)","v":""},{"$f":"IF(OR(DU34=\"\",DU34=0),\"\",1)","v":""},{"$f":"IF(OR(HD34=1,HE34=1,HF34=1,HG34=1,HI34=1,HH34=1,HJ34=1,HK34=1),\"○\",\"\")","v":""},{"$f":"IF(OR(DZ34=\"\",DZ34=0),\"\",1)","v":""},{"$f":"IF(OR(EA34=\"\",EA34=0),\"\",1)","v":""},{"$f":"IF(OR(EB34=\"\",EB34=0),\"\",1)","v":""},{"$f":"IF(OR(EC34=\"\",EC34=0),\"\",1)","v":""},{"$f":"IF(OR(ED34=\"\",ED34=0),\"\",1)","v":""},{"$f":"IF(OR(EE34=\"\",EE34=0),\"\",1)","v":""},{"$f":"IF(OR(EF34=\"\",EF34=0),\"\",1)","v":""},{"$f":"IF(OR(EG34=\"\",EG34=0),\"\",1)","v":""},{"$f":"IF(OR(EH34=4,EH34=3,EH34=2,EH34=1),\"○\",\"\")","v":""},{"$f":"IF(OR(EI34=1,EI34=2,EI34=3),\"○\",IF(OR(EJ34=1,EJ34=2,EJ34=3),\"○\",IF(OR(EK34=1,EK34=2,EK34=3),\"○\",IF(OR(EL34=1,EL34=2,EL34=3),\"○\",\"\"))))","v":""},{"$f":"IF(EM34=\"\",\"\",1)","v":""},{"$f":"IF(OR(EN34=\"\",EN34=0),\"\",1)","v":""},{"$f":"IF(OR(HQ34=1,HR34=1,HS34=1,HT34=1),1,\"\")","v":""},{"$f":"IF(OR(ER34=\"\",ER34=\"無し\"),\"\",1)","v":""},{"$f":"IF(OR(EV34=\"\",EV34=\"無し\"),\"\",1)","v":""},{"$f":"IF(OR(FG34=\"\",FG34=\"無し\"),\"\",1)","v":""},{"$f":"IF(OR(EX34=\"\",EX34=\"無し\"),\"\",1)","v":""}]
[1,null,null,{"$f":"IF(B35=\"\",\"\",B35)","v":""},null,null,null,null,null,null,null,null,null,null,null,null,null,null,null,null,null,null,null,null,null,null,null,null,null,null,null,null,null,null,null,null,null,null,null,null,null,null,null,null,null,null,null,null,null,"",null,null,null,null,null,null,null,null,null,null,null,null,null,null,null,null,null,null,null,null,null,null,null,null,null,null,null,null,null,null,null,null,null,null,null,null,null,null,null,null,null,null,null,null,null,null,null,null,null,null,null,null,null,null,null,null,null,null,null,null,null,null,null,null,null,null,null,null,null,null,null,null,null,null,null,null,null,null,null,null,null,null,null,null,null,null,null,null,null,null,null,null,null,null,null,null,"",null,null,null,null,null,null,null,null,null,null,"",null,null,null,null,null,null,null,null,null,null,"",null,null,null,null,null,null,null,null,null,null,"",null,null,null,null,null,null,null,null,"","",{"$f":"IF(OR(AA35=\"○\",AB35<>\"\",AG35<>\"\",AJ35<>\"\"),1,\"\")","v":""},"",{"$f":"IF(AT35<>\"\",1,\"\")","v":""},1,{"$f":"IF(OR(AV35=\"○\",AY35<>\"\",BA35=\"はり\",BA35=\"傾斜屋根\",BA35=\"その他\",BD35<>\"\"),1,\"\")","v":""},{"$f":"IF(OR(BQ35<>\"\",BU35<>\"\",BV35<>\"\",BW35<>\"\",BX35<>\"\"),1,\"\")","v":""},{"$f":"IF(OR(CC35<>\"\",CD35<>\"\"),1,\"\")","v":""},{"$f":"IF(OR(CH35=\"○\",CI35=\"○\",CJ35=\"○\",CK35=1,CK35=2,CK35=3,CL35=1,CL35=2,CL35=3),1,\"\")","v":""},{"$f":"IF(OR(CM35=\"○\",CN35=\"○\",CS35=\"○\",CT35=\"○\",CW35=\"○\",CX35=\"○\",DA35=\"○\",DB35=\"○\"),1,\"\")","v":""},{"$f":"IF(DD35=\"\",\"\",1)","v":""},{"$f":"IF(OR(DE35<>\"\",DF35<>\"\",DG35<>\"\",DH35<>\"\",DI35<>\"\"),1,\"\")","v":""},{"$f":"IF(OR(GU35=1,GV35=1,GW35=1,GX35=1,GY35=1,GZ35=1,HA35=1,HB35=1),\"○\",\"\")","v":""},{"$f":"IF(OR(DN35=\"\",DN35=0),\"\",1)","v":""},"","","","","","","",{"$f":"IF(OR(HD35=1,HE35=1,HF35=1,HG35=1,HI35=1,HH35=1,HJ35=1,HK35=1),\"○\",\"\")","v":""},{"$f":"IF(OR(DZ35=\"\",DZ35=0),\"\",1)","v":""},{"$f":"IF(OR(EA35=\"\",EA35=0),\"\",1)","v":""},"","","","","","",{"$f":"IF(OR(EH35=4,EH35=3,EH35=2,EH35=1),\"○\",\"\")","v":""},{"$f":"IF(OR(EI35=1,EI35=2,EI35=3),\"○\",IF(OR(EJ35=1,EJ35=2,EJ35=3),\"○\",IF(OR(EK35=1,EK35=2,EK35=3),\"○\",IF(OR(EL35=1,EL35=2,EL35=3),\"○\",\"\"))))","v":""},{"$f":"IF(EM35=\"\",\"\",1)","v":""},{"$f":"IF(OR(EN35=\"\"),\"\",1)","v":""},{"$f":"IF(OR(HQ35=1,HR35=1,HS35=1,HT35=1),1,\"\")","v":""},{"$f":"IF(AND(OR(ER35=\"\",ER35=\"無し\"),OR(FC35=\"\",FC35=\"無し\")),\"\",1)","v":""},{"$f":"IF(AND(OR(ET35=\"\",ET35=\"無し\"),OR(FE35=\"\",FE35=\"無し\")),\"\",1)","v":""},{"$f":"IF(OR(FG35=\"\",FG35=\"無し\"),\"\",1)","v":""},{"$f":"IF(AND(OR(EX35=\"\",EX35=\"無し\"),OR(FI35=\"\",FI35=\"無し\")),\"\",1)","v":""}]
[2,null,null,{"$f":"IF(B36=\"\",\"\",B36)","v":""},null,null,null,null,null,null,null,null,null,null,null,null,null,null,null,null,null,null,null,null,null,null,null,null,null,null,null,null,null,null,null,null,null,null,null,null,null,null,null,null,null,null,null,null,null,"",null,null,null,null,null,null,null,null,null,null,null,null,null,null,null,null,null,null,null,null,null,null,null,null,null,null,null,null,null,null,null,null,null,null,null,null,null,null,null,null,null,null,null,null,null,null,null,null,null,null,null,null,null,null,null,null,null,null,null,null,null,null,null,null,null,null,null,null,null,null,null,null,null,null,null,null,null,null,null,null,null,null,null,null,null,null,null,null,null,null,null,null,null,null,null,null,"",null,null,null,null,null,null,null,null,null,null,"",null,null,null,null,null,null,null,null,null,null,"",null,null,null,null,null,null,null,null,null,null,"",null,null,null,null,null,null,null,null,{"$f":"IF(Y36<>\"\",1,\"\")","v":""},{"$f":"IF(Z36<>\"\",1,\"\")","v":""},{"$f":"IF(OR(AA36=\"○\",AB36<>\"\",AG36<>\"\",AJ36<>\"\"),1,\"\")","v":""},"",{"$f":"IF(AT36<>\"\",1,\"\")","v":""},1,{"$f":"IF(OR(AV36=\"○\",AY36<>\"\",BA36=\"はり\",BA36=\"傾斜屋根\",BA36=\"その他\",BD36<>\"\"),1,\"\")","v":""},{"$f":"IF(OR(BQ36<>\"\",BU36<>\"\",BV36<>\"\",BW36<>\"\",BX36<>\"\"),1,\"\")","v":""},{"$f":"IF(OR(CC36<>\"\",CD36<>\"\"),1,\"\")","v":""},{"$f":"IF(OR(CH36=\"○\",CI36=\"○\",CJ36=\"○\",CK36=1,CK36=2,CK36=3,CL36=1,CL36=2,CL36=3),1,\"\")","v":""},{"$f":"IF(OR(CM36=\"○\",CN36=\"○\",CS36=\"○\",CT36=\"○\",CW36=\"○\",CX36=\"○\",DA36=\"○\",DB36=\"○\"),1,\"\")","v":""},{"$f":"IF(DD36=\"\",\"\",1)","v":""},{"$f":"IF(OR(DE36<>\"\",DF36<>\"\",DG36<>\"\",DH36<>\"\",DI36<>\"\"),1,\"\")","v":""},{"$f":"IF(OR(GU36=1,GV36=1,GW36=1,GX36=1,GY36=1,GZ36=1,HA36=1,HB36=1),\"○\",\"\")","v":""},{"$f":"IF(OR(DN36=\"\",DN36=0),\"\",1)","v":""},{"$f":"IF(OR(DO36=\"\",DO36=0),\"\",1)","v":""},{"$f":"IF(OR(DP36=\"\",DP36=0),\"\",1)","v":""},{"$f":"IF(OR(DQ36=\"\",DQ36=0),\"\",1)","v":""},{"$f":"IF(OR(DR36=\"\",DR36=0),\"\",1)","v":""},{"$f":"IF(OR(DS36=\"\",DS36=0),\"\",1)","v":""},{"$f":"IF(OR(DT36=\"\",DT36=0),\"\",1)","v":""},{"$f":"IF(OR(DU36=\"\",DU36=0),\"\",1)","v":""},{"$f":"IF(OR(HD36=1,HE36=1,HF36=1,HG36=1,HI36=1,HH36=1,HJ36=1,HK36=1),\"○\",\"\")","v":""},{"$f":"IF(OR(DZ36=\"\",DZ36=0),\"\",1)","v":""},{"$f":"IF(OR(EA36=\"\",EA36=0),\"\",1)","v":""},{"$f":"IF(OR(EB36=\"\",EB36=0),\"\",1)","v":""},{"$f":"IF(OR(EC36=\"\",EC36=0),\"\",1)","v":""},{"$f":"IF(OR(ED36=\"\",ED36=0),\"\",1)","v":""},{"$f":"IF(OR(EE36=\"\",EE36=0),\"\",1)","v":""},{"$f":"IF(OR(EF36=\"\",EF36=0),\"\",1)","v":""},{"$f":"IF(OR(EG36=\"\",EG36=0),\"\",1)","v":""},{"$f":"IF(OR(EH36=4,EH36=3,EH36=2,EH36=1),\"○\",\"\")","v":""},{"$f":"IF(OR(EI36=1,EI36=2,EI36=3),\"○\",IF(OR(EJ36=1,EJ36=2,EJ36=3),\"○\",IF(OR(EK36=1,EK36=2,EK36=3),\"○\",IF(OR(EL36=1,EL36=2,EL36=3),\"○\",\"\"))))","v":""},{"$f":"IF(EM35=\"\",\"\",1)","v":""},{"$f":"IF(OR(EN36=\"\"),\"\",1)","v":""},{"$f":"IF(OR(HQ35=1,HR35=1,HS35=1,HT35=1),1,\"\")","v":""},{"$f":"IF(AND(OR(ER36=\"\",ER36=\"無し\"),OR(FC36=\"\",FC36=\"無し\")),\"\",1)","v":""},{"$f":"IF(AND(OR(ET36=\"\",ET36=\"無し\"),OR(FE36=\"\",FE36=\"無し\")),\"\",1)","v":""},{"$f":"IF(OR(FG36=\"\",FG36=\"無し\"),\"\",1)","v":""},{"$f":"IF(AND(OR(EX36=\"\",EX36=\"無し\"),OR(FI36=\"\",FI36=\"無し\")),\"\",1)","v":""}]
[3,null,null,{"$f":"IF(B37=\"\",\"\",B37)","v":""},null,null,null,null,null,null,null,null,null,null,null,null,null,null,null,null,null,null,null,null,null,null,null,null,null,null,null,null,null,null,null,null,null,null,null,null,null,null,null,null,null,null,null,null,null,"",null,null,null,null,null,null,null,null,null,null,null,null,null,null,null,null,null,null,null,null,null,null,null,null,null,null,null,null,null,null,null,null,null,null,null,null,null,null,null,null,null,null,null,null,null,null,null,null,null,null,null,null,null,null,null,null,null,null,null,null,null,null,null,null,null,null,null,null,null,null,null,null,null,null,null,null,null,null,null,null,null,null,null,null,null,null,null,null,null,null,null,null,null,null,null,null,"",null,null,null,null,null,null,null,null,null,null,"",null,null,null,null,null,null,null,null,null,null,"",null,null,null,null,null,null,null,null,null,null,"",null,null,null,null,null,null,null,null,"","",{"$f":"IF(OR(AA37=\"○\",AB37<>\"\",AG37<>\"\",AJ37<>\"\"),1,\"\")","v":""},"","",1,{"$f":"IF(OR(AV37=\"○\",AY37<>\"\",BA37=\"はり\",BA37=\"傾斜屋根\",BA37=\"その他\",BD37<>\"\"),1,\"\")","v":""},{"$f":"IF(OR(BQ37<>\"\",BU37<>\"\",BV37<>\"\",BW37<>\"\",BX37<>\"\"),1,\"\")","v":""},"",{"$f":"IF(OR(CH37=\"○\",CI37=\"○\",CJ37=\"○\",CK37=1,CK37=2,CK37=3,CL37=1,CL37=2,CL37=3),1,\"\")","v":""},"","","","","","","","","","","","","","","","","","","","","","","","","","","","","",""]
[4,null,null,"",null,null,null,null,null,null,null,null,null,null,null,null,null,null,null,null,null,null,null,null,null,null,null,null,null,null,null,null,null,null,null,null,null,null,null,null,null,null,null,null,null,null,null,null,null,"",null,null,null,null,null,null,null,null,null,null,null,null,null,null,null,null,null,null,null,null,null,null,null,null,null,null,null,null,null,null,null,null,null,null,null,null,null,null,null,null,null,null,null,null,null,null,null,null,null,null,null,null,null,null,null,null,null,null,null,null,null,null,null,null,null,null,null,null,null,null,null,null,null,null,null,null,null,null,null,null,null,null,null,null,null,null,null,null,null,null,null,null,null,null,null,null,"",null,null,null,null,null,null,null,null,null,null,"",null,null,null,null,null,null,null,null,null,null,"",null,null,null,null,null,null,null,null,null,null,"",null,null,null,null,null,null,null,null,"","","","","",1,{"$f":"IF(OR(AV38=\"○\",AY38<>\"\",BA38=\"はり\",BA38=\"傾斜屋根\",BA38=\"その他\",BD38<>\"\"),1,\"\")","v":""},"","","","","","","","","","","","","","","","","","","","","","","","","","","","","","","","",""]
[5,null,null,"",null,null,null,null,null,null,null,null,null,null,null,null,null,null,null,null,null,null,null,null,null,null,null,null,null,null,null,null,null,null,null,null,null,null,null,null,null,null,null,null,null,null,null,null,null,"",null,null,null,null,null,null,null,null,null,null,null,null,null,null,null,null,null,null,null,null,null,null,null,null,null,null,null,null,null,null,null,null,null,null,null,null,null,null,null,null,null,null,null,null,null,null,null,null,null,null,null,null,null,null,null,null,null,null,null,null,null,null,null,null,null,null,null,null,null,null,null,null,null,null,null,null,null,null,null,null,null,null,null,null,null,null,null,null,null,null,null,null,null,null,null,null,"",null,null,null,null,null,null,null,null,null,null,"",null,null,null,null,null,null,null,null,null,null,"",null,null,null,null,null,null,null,null,null,null,"",null,null,null,null,null,null,null,null,"","","","","",1,{"$f":"IF(OR(AV39=\"○\",AY39<>\"\",BA39=\"はり\",BA39=\"傾斜屋根\",BA39=\"その他\",BD39<>\"\"),1,\"\")","v":""},"","","","","","","","","","","","","","","","","","","","","","","","","","","","","","","","",""]
[6,null,null,"",null,null,null,null,null,null,null,null,null,null,null,null,null,null,null,null,null,null,null,null,null,null,null,null,null,null,null,null,null,null,null,null,null,null,null,null,null,null,null,null,null,null,null,null,null,"",null,null,null,null,null,null,null,null,null,null,null,null,null,null,null,null,null,null,null,null,null,null,null,null,null,null,null,null,null,null,null,null,null,null,null,null,null,null,null,null,null,null,null,null,null,null,null,null,null,null,null,null,null,null,null,null,null,null,null,null,null,null,null,null,null,null,null,null,null,null,null,null,null,null,null,null,null,null,null,null,null,null,null,null,null,null,null,null,null,null,null,null,null,null,null,null,"",null,null,null,null,null,null,null,null,null,null,"",null,null,null,null,null,null,null,null,null,null,"",null,null,null,null,null,null,null,null,null,null,"",null,null,null,null,null,null,null,null,"","","","","",1,"","","","","","","","","","","","","","","","","","","","","","","","","","","","","","","","","",""]
[7,null,null,"",null,null,null,null,null,null,null,null,null,null,null,null,null,null,null,null,null,null,null,null,null,null,null,null,null,null,null,null,null,null,null,null,null,null,null,null,null,null,null,null,null,null,null,null,null,"",null,null,null,null,null,null,null,null,null,null,null,null,null,null,null,null,null,null,null,null,null,null,null,null,null,null,null,null,null,null,null,null,null,null,null,null,null,null,null,null,null,null,null,null,null,null,null,null,null,null,null,null,null,null,null,null,null,null,null,null,null,null,null,null,null,null,null,null,null,null,null,null,null,null,null,null,null,null,null,null,null,null,null,null,null,null,null,null,null,null,null,null,null,null,null,null,"",null,null,null,null,null,null,null,null,null,null,"",null,null,null,null,null,null,null,null,null,null,"",null,null,null,null,null,null,null,null,null,null,"",null,null,null,null,null,null,null,null,"","","","","",1,"","","","","","","","","","","","","","","","","","","","","","","","","","","","","","","","","",""]
[8,null,null,"",null,null,null,null,null,null,null,null,null,null,null,null,null,null,null,null,null,null,null,null,null,null,null,null,null,null,null,null,null,null,null,null,null,null,null,null,null,null,null,null,null,null,null,null,null,"",null,null,null,null,null,null,null,null,null,null,null,null,null,null,null,null,null,null,null,null,null,null,null,null,null,null,null,null,null,null,null,null,null,null,null,null,null,null,null,null,null,null,null,null,null,null,null,null,null,null,null,null,null,null,null,null,null,null,null,null,null,null,null,null,null,null,null,null,null,null,null,null,null,null,null,null,null,null,null,null,null,null,null,null,null,null,null,null,null,null,null,null,null,null,null,null,"",null,null,null,null,null,null,null,null,null,null,"",null,null,null,null,null,null,null,null,null,null,"",null,null,null,null,null,null,null,null,null,null,"",null,null,null,null,null,null,null,null,"","","","","",1,"","","","","","","","","","","","","","","","","","","","","","","","","","","","","","","","","",""]
[9,null,null,"",null,null,null,null,null,null,null,null,null,null,null,null,null,null,null,null,null,null,null,null,null,null,null,null,null,null,null,null,null,null,null,null,null,null,null,null,null,null,null,null,null,null,null,null,null,"",null,null,null,null,null,null,null,null,null,null,null,null,null,null,null,null,null,null,null,null,null,null,null,null,null,null,null,null,null,null,null,null,null,null,null,null,null,null,null,null,null,null,null,null,null,null,null,null,null,null,null,null,null,null,null,null,null,null,null,null,null,null,null,null,null,null,null,null,null,null,null,null,null,null,null,null,null,null,null,null,null,null,null,null,null,null,null,null,null,null,null,null,null,null,null,null,"",null,null,null,null,null,null,null,null,null,null,"",null,null,null,null,null,null,null,null,null,null,"",null,null,null,null,null,null,null,null,null,null,"",null,null,null,null,null,null,null,null,"","","","","",1,"","","","","","","","","","","","","","","","","","","","","","","","","","","","","","","","","",""]
[10,null,null,"",null,null,null,null,null,null,null,null,null,null,null,null,null,null,null,null,null,null,null,null,null,null,null,null,null,null,null,null,null,null,null,null,null,null,null,null,null,null,null,null,null,null,null,null,null,"",null,null,null,null,null,null,null,null,null,null,null,null,null,null,null,null,null,null,null,null,null,null,null,null,null,null,null,null,null,null,null,null,null,null,null,null,null,null,null,null,null,null,null,null,null,null,null,null,null,null,null,null,null,null,null,null,null,null,null,null,null,null,null,null,null,null,null,null,null,null,null,null,null,null,null,null,null,null,null,null,null,null,null,null,null,null,null,null,null,null,null,null,null,null,null,null,"",null,null,null,null,null,null,null,null,null,null,"",null,null,null,null,null,null,null,null,null,null,"",null,null,null,null,null,null,null,null,null,null,"",null,null,null,null,null,null,null,null,"","","","","",1,"","","","","","","","","","","","","","","","","","","","","","","","","","","","","","","","","",""]
[11,null,null,"",null,null,null,null,null,null,null,null,null,null,null,null,null,null,null,null,null,null,null,null,null,null,null,null,null,null,null,null,null,null,null,null,null,null,null,null,null,null,null,null,null,null,null,null,null,"",null,null,null,null,null,null,null,null,null,null,null,null,null,null,null,null,null,null,null,null,null,null,null,null,null,null,null,null,null,null,null,null,null,null,null,null,null,null,null,null,null,null,null,null,null,null,null,null,null,null,null,null,null,null,null,null,null,null,null,null,null,null,null,null,null,null,null,null,null,null,null,null,null,null,null,null,null,null,null,null,null,null,null,null,null,null,null,null,null,null,null,null,null,null,null,null,"",null,null,null,null,null,null,null,null,null,null,"",null,null,null,null,null,null,null,null,null,null,"",null,null,null,null,null,null,null,null,null,null,"",null,null,null,null,null,null,null,null,"","","","","",1,"","","","","","","","","","","","","","","","","","","","","","","","","","","","","","","","","",""]
[12,null,null,"",null,null,null,null,null,null,null,null,null,null,null,null,null,null,null,null,null,null,null,null,null,null,null,null,null,null,null,null,null,null,null,null,null,null,null,null,null,null,null,null,null,null,null,null,null,"",null,null,null,null,null,null,null,null,null,null,null,null,null,null,null,null,null,null,null,null,null,null,null,null,null,null,null,null,null,null,null,null,null,null,null,null,null,null,null,null,null,null,null,null,null,null,null,null,null,null,null,null,null,null,null,null,null,null,null,null,null,null,null,null,null,null,null,null,null,null,null,null,null,null,null,null,null,null,null,null,null,null,null,null,null,null,null,null,null,null,null,null,null,null,null,null,"",null,null,null,null,null,null,null,null,null,null,"",null,null,null,null,null,null,null,null,null,null,"",null,null,null,null,null,null,null,null,null,null,"",null,null,null,null,null,null,null,null,"","","","","",1,"","","","","","","","","","","","","","","","","","","","","","","","","","","","","","","","","",""]
[13,null,null,"",null,null,null,null,null,null,null,null,null,null,null,null,null,null,null,null,null,null,null,null,null,null,null,null,null,null,null,null,null,null,null,null,null,null,null,null,null,null,null,null,null,null,null,null,null,"",null,null,null,null,null,null,null,null,null,null,null,null,null,null,null,null,null,null,null,null,null,null,null,null,null,null,null,null,null,null,null,null,null,null,null,null,null,null,null,null,null,null,null,null,null,null,null,null,null,null,null,null,null,null,null,null,null,null,null,null,null,null,null,null,null,null,null,null,null,null,null,null,null,null,null,null,null,null,null,null,null,null,null,null,null,null,null,null,null,null,null,null,null,null,null,null,"",null,null,null,null,null,null,null,null,null,null,"",null,null,null,null,null,null,null,null,null,null,"",null,null,null,null,null,null,null,null,null,null,"",null,null,null,null,null,null,null,null,"","","","","",1,"","","","","","","","","","","","","","","","","","","","","","","","","","","","","","","","","",""]
[14,null,null,"",null,null,null,null,null,null,null,null,null,null,null,null,null,null,null,null,null,null,null,null,null,null,null,null,null,null,null,null,null,null,null,null,null,null,null,null,null,null,null,null,null,null,null,null,null,"",null,null,null,null,null,null,null,null,null,null,null,null,null,null,null,null,null,null,null,null,null,null,null,null,null,null,null,null,null,null,null,null,null,null,null,null,null,null,null,null,null,null,null,null,null,null,null,null,null,null,null,null,null,null,null,null,null,null,null,null,null,null,null,null,null,null,null,null,null,null,null,null,null,null,null,null,null,null,null,null,null,null,null,null,null,null,null,null,null,null,null,null,null,null,null,null,"",null,null,null,null,null,null,null,null,null,null,"",null,null,null,null,null,null,null,null,null,null,"",null,null,null,null,null,null,null,null,null,null,"",null,null,null,null,null,null,null,null,"","","","","",1,"","","","","","","","","","","","","","","","","","","","","","","","","","","","","","","","","",""]
[15,null,null,"",null,null,null,null,null,null,null,null,null,null,null,null,null,null,null,null,null,null,null,null,null,null,null,null,null,null,null,null,null,null,null,null,null,null,null,null,null,null,null,null,null,null,null,null,null,"",null,null,null,null,null,null,null,null,null,null,null,null,null,null,null,null,null,null,null,null,null,null,null,null,null,null,null,null,null,null,null,null,null,null,null,null,null,null,null,null,null,null,null,null,null,null,null,null,null,null,null,null,null,null,null,null,null,null,null,null,null,null,null,null,null,null,null,null,null,null,null,null,null,null,null,null,null,null,null,null,null,null,null,null,null,null,null,null,null,null,null,null,null,null,null,null,"",null,null,null,null,null,null,null,null,null,null,"",null,null,null,null,null,null,null,null,null,null,"",null,null,null,null,null,null,null,null,null,null,"",null,null,null,null,null,null,null,null,"","","","","",1,"","","","","","","","","","","","","","","","","","","","","","","","","","","","","","","","","",""]
[16,null,null,"",null,null,null,null,null,null,null,null,null,null,null,null,null,null,null,null,null,null,null,null,null,null,null,null,null,null,null,null,null,null,null,null,null,null,null,null,null,null,null,null,null,null,null,null,null,"",null,null,null,null,null,null,null,null,null,null,null,null,null,null,null,null,null,null,null,null,null,null,null,null,null,null,null,null,null,null,null,null,null,null,null,null,null,null,null,null,null,null,null,null,null,null,null,null,null,null,null,null,null,null,null,null,null,null,null,null,null,null,null,null,null,null,null,null,null,null,null,null,null,null,null,null,null,null,null,null,null,null,null,null,null,null,null,null,null,null,null,null,null,null,null,null,"",null,null,null,null,null,null,null,null,null,null,"",null,null,null,null,null,null,null,null,null,null,"",null,null,null,null,null,null,null,null,null,null,"",null,null,null,null,null,null,null,null,"","","","","",1,"","","","","","","","","","","","","","","","","","","","","","","","","","","","","","","","","",""]
[17,null,null,"",null,null,null,null,null,null,null,null,null,null,null,null,null,null,null,null,null,null,null,null,null,null,null,null,null,null,null,null,null,null,null,null,null,null,null,null,null,null,null,null,null,null,null,null,null,"",null,null,null,null,null,null,null,null,null,null,null,null,null,null,null,null,null,null,null,null,null,null,null,null,null,null,null,null,null,null,null,null,null,null,null,null,null,null,null,null,null,null,null,null,null,null,null,null,null,null,null,null,null,null,null,null,null,null,null,null,null,null,null,null,null,null,null,null,null,null,null,null,null,null,null,null,null,null,null,null,null,null,null,null,null,null,null,null,null,null,null,null,null,null,null,null,"",null,null,null,null,null,null,null,null,null,null,"",null,null,null,null,null,null,null,null,null,null,"",null,null,null,null,null,null,null,null,null,null,"",null,null,null,null,null,null,null,null,"","","","","",1,"","","","","","","","","","","","","","","","","","","","","","","","","","","","","","","","","",""]
[18,null,null,"",null,null,null,null,null,null,null,null,null,null,null,null,null,null,null,null,null,null,null,null,null,null,null,null,null,null,null,null,null,null,null,null,null,null,null,null,null,null,null,null,null,null,null,null,null,"",null,null,null,null,null,null,null,null,null,null,null,null,null,null,null,null,null,null,null,null,null,null,null,null,null,null,null,null,null,null,null,null,null,null,null,null,null,null,null,null,null,null,null,null,null,null,null,null,null,null,null,null,null,null,null,null,null,null,null,null,null,null,null,null,null,null,null,null,null,null,null,null,null,null,null,null,null,null,null,null,null,null,null,null,null,null,null,null,null,null,null,null,null,null,null,null,"",null,null,null,null,null,null,null,null,null,null,"",null,null,null,null,null,null,null,null,null,null,"",null,null,null,null,null,null,null,null,null,null,"",null,null,null,null,null,null,null,null,"","","","","",1,"","","","","","","","","","","","","","","","","","","","","","","","","","","","","","","","","",""]
[19,null,null,"",null,null,null,null,null,null,null,null,null,null,null,null,null,null,null,null,null,null,null,null,null,null,null,null,null,null,null,null,null,null,null,null,null,null,null,null,null,null,null,null,null,null,null,null,null,"",null,null,null,null,null,null,null,null,null,null,null,null,null,null,null,null,null,null,null,null,null,null,null,null,null,null,null,null,null,null,null,null,null,null,null,null,null,null,null,null,null,null,null,null,null,null,null,null,null,null,null,null,null,null,null,null,null,null,null,null,null,null,null,null,null,null,null,null,null,null,null,null,null,null,null,null,null,null,null,null,null,null,null,null,null,null,null,null,null,null,null,null,null,null,null,null,"",null,null,null,null,null,null,null,null,null,null,"",null,null,null,null,null,null,null,null,null,null,"",null,null,null,null,null,null,null,null,null,null,"",null,null,null,null,null,null,null,null,"","","","","",1,"","","","","","","","","","","","","","","","","","","","","","","","","","","","","","","","","",""]
[20,null,null,"",null,null,null,null,null,null,null,null,null,null,null,null,null,null,null,null,null,null,null,null,null,null,null,null,null,null,null,null,null,null,null,null,null,null,null,null,null,null,null,null,null,null,null,null,null,"",null,null,null,null,null,null,null,null,null,null,null,null,null,null,null,null,null,null,null,null,null,null,null,null,null,null,null,null,null,null,null,null,null,null,null,null,null,null,null,null,null,null,null,null,null,null,null,null,null,null,null,null,null,null,null,null,null,null,null,null,null,null,null,null,null,null,null,null,null,null,null,null,null,null,null,null,null,null,null,null,null,null,null,null,null,null,null,null,null,null,null,null,null,null,null,null,"",null,null,null,null,null,null,null,null,null,null,"",null,null,null,null,null,null,null,null,null,null,"",null,null,null,null,null,null,null,null,null,null,"",null,null,null,null,null,null,null,null,"","","","","",1,"","","","","","","","","","","","","","","","","","","","","","","","","","","","","","","","","",""]
[21,null,null,"",null,null,null,null,null,null,null,null,null,null,null,null,null,null,null,null,null,null,null,null,null,null,null,null,null,null,null,null,null,null,null,null,null,null,null,null,null,null,null,null,null,null,null,null,null,"",null,null,null,null,null,null,null,null,null,null,null,null,null,null,null,null,null,null,null,null,null,null,null,null,null,null,null,null,null,null,null,null,null,null,null,null,null,null,null,null,null,null,null,null,null,null,null,null,null,null,null,null,null,null,null,null,null,null,null,null,null,null,null,null,null,null,null,null,null,null,null,null,null,null,null,null,null,null,null,null,null,null,null,null,null,null,null,null,null,null,null,null,null,null,null,null,"",null,null,null,null,null,null,null,null,null,null,"",null,null,null,null,null,null,null,null,null,null,"",null,null,null,null,null,null,null,null,null,null,"",null,null,null,null,null,null,null,null,"","","","","",1,"","","","","","","","","","","","","","","","","","","","","","","","","","","","","","","","","",""]
[22,null,null,"",null,null,null,null,null,null,null,null,null,null,null,null,null,null,null,null,null,null,null,null,null,null,null,null,null,null,null,null,null,null,null,null,null,null,null,null,null,null,null,null,null,null,null,null,null,"",null,null,null,null,null,null,null,null,null,null,null,null,null,null,null,null,null,null,null,null,null,null,null,null,null,null,null,null,null,null,null,null,null,null,null,null,null,null,null,null,null,null,null,null,null,null,null,null,null,null,null,null,null,null,null,null,null,null,null,null,null,null,null,null,null,null,null,null,null,null,null,null,null,null,null,null,null,null,null,null,null,null,null,null,null,null,null,null,null,null,null,null,null,null,null,null,"",null,null,null,null,null,null,null,null,null,null,"",null,null,null,null,null,null,null,null,null,null,"",null,null,null,null,null,null,null,null,null,null,"",null,null,null,null,null,null,null,null,"","","","","",1,"","","","","","","","","","","","","","","","","","","","","","","","","","","","","","","","","",""]
[23,null,null,"",null,null,null,null,null,null,null,null,null,null,null,null,null,null,null,null,null,null,null,null,null,null,null,null,null,null,null,null,null,null,null,null,null,null,null,null,null,null,null,null,null,null,null,null,null,"",null,null,null,null,null,null,null,null,null,null,null,null,null,null,null,null,null,null,null,null,null,null,null,null,null,null,null,null,null,null,null,null,null,null,null,null,null,null,null,null,null,null,null,null,null,null,null,null,null,null,null,null,null,null,null,null,null,null,null,null,null,null,null,null,null,null,null,null,null,null,null,null,null,null,null,null,null,null,null,null,null,null,null,null,null,null,null,null,null,null,null,null,null,null,null,null,"",null,null,null,null,null,null,null,null,null,null,"",null,null,null,null,null,null,null,null,null,null,"",null,null,null,null,null,null,null,null,null,null,"",null,null,null,null,null,null,null,null,"","","","","",1,"","","","","","","","","","","","","","","","","","","","","","","","","","","","","","","","","",""]
[24,null,null,"",null,null,null,null,null,null,null,null,null,null,null,null,null,null,null,null,null,null,null,null,null,null,null,null,null,null,null,null,null,null,null,null,null,null,null,null,null,null,null,null,null,null,null,null,null,"",null,null,null,null,null,null,null,null,null,null,null,null,null,null,null,null,null,null,null,null,null,null,null,null,null,null,null,null,null,null,null,null,null,null,null,null,null,null,null,null,null,null,null,null,null,null,null,null,null,null,null,null,null,null,null,null,null,null,null,null,null,null,null,null,null,null,null,null,null,null,null,null,null,null,null,null,null,null,null,null,null,null,null,null,null,null,null,null,null,null,null,null,null,null,null,null,"",null,null,null,null,null,null,null,null,null,null,"",null,null,null,null,null,null,null,null,null,null,"",null,null,null,null,null,null,null,null,null,null,"",null,null,null,null,null,null,null,null,"","","","","",1,"","","","","","","","","","","","","","","","","","","","","","","","","","","","","","","","","",""]
[25,null,null,"",null,null,null,null,null,null,null,null,null,null,null,null,null,null,null,null,null,null,null,null,null,null,null,null,null,null,null,null,null,null,null,null,null,null,null,null,null,null,null,null,null,null,null,null,null,"",null,null,null,null,null,null,null,null,null,null,null,null,null,null,null,null,null,null,null,null,null,null,null,null,null,null,null,null,null,null,null,null,null,null,null,null,null,null,null,null,null,null,null,null,null,null,null,null,null,null,null,null,null,null,null,null,null,null,null,null,null,null,null,null,null,null,null,null,null,null,null,null,null,null,null,null,null,null,null,null,null,null,null,null,null,null,null,null,null,null,null,null,null,null,null,null,"",null,null,null,null,null,null,null,null,null,null,"",null,null,null,null,null,null,null,null,null,null,"",null,null,null,null,null,null,null,null,null,null,"",null,null,null,null,null,null,null,null,"","","","","",1,"","","","","","","","","","","","","","","","","","","","","","","","","","","","","","","","","",""]
[26,null,null,"",null,null,null,null,null,null,null,null,null,null,null,null,null,null,null,null,null,null,null,null,null,null,null,null,null,null,null,null,null,null,null,null,null,null,null,null,null,null,null,null,null,null,null,null,null,"",null,null,null,null,null,null,null,null,null,null,null,null,null,null,null,null,null,null,null,null,null,null,null,null,null,null,null,null,null,null,null,null,null,null,null,null,null,null,null,null,null,null,null,null,null,null,null,null,null,null,null,null,null,null,null,null,null,null,null,null,null,null,null,null,null,null,null,null,null,null,null,null,null,null,null,null,null,null,null,null,null,null,null,null,null,null,null,null,null,null,null,null,null,null,null,null,"",null,null,null,null,null,null,null,null,null,null,"",null,null,null,null,null,null,null,null,null,null,"",null,null,null,null,null,null,null,null,null,null,"",null,null,null,null,null,null,null,null,"","","","","",1,"","","","","","","","","","","","","","","","","","","","","","","","","","","","","","","","","",""]
[27,null,null,"",null,null,null,null,null,null,null,null,null,null,null,null,null,null,null,null,null,null,null,null,null,null,null,null,null,null,null,null,null,null,null,null,null,null,null,null,null,null,null,null,null,null,null,null,null,"",null,null,null,null,null,null,null,null,null,null,null,null,null,null,null,null,null,null,null,null,null,null,null,null,null,null,null,null,null,null,null,null,null,null,null,null,null,null,null,null,null,null,null,null,null,null,null,null,null,null,null,null,null,null,null,null,null,null,null,null,null,null,null,null,null,null,null,null,null,null,null,null,null,null,null,null,null,null,null,null,null,null,null,null,null,null,null,null,null,null,null,null,null,null,null,null,"",null,null,null,null,null,null,null,null,null,null,"",null,null,null,null,null,null,null,null,null,null,"",null,null,null,null,null,null,null,null,null,null,"",null,null,null,null,null,null,null,null,"","","","","",1,"","","","","","","","","","","","","","","","","","","","","","","","","","","","","","","","","",""]
[28,null,null,"",null,null,null,null,null,null,null,null,null,null,null,null,null,null,null,null,null,null,null,null,null,null,null,null,null,null,null,null,null,null,null,null,null,null,null,null,null,null,null,null,null,null,null,null,null,"",null,null,null,null,null,null,null,null,null,null,null,null,null,null,null,null,null,null,null,null,null,null,null,null,null,null,null,null,null,null,null,null,null,null,null,null,null,null,null,null,null,null,null,null,null,null,null,null,null,null,null,null,null,null,null,null,null,null,null,null,null,null,null,null,null,null,null,null,null,null,null,null,null,null,null,null,null,null,null,null,null,null,null,null,null,null,null,null,null,null,null,null,null,null,null,null,"",null,null,null,null,null,null,null,null,null,null,"",null,null,null,null,null,null,null,null,null,null,"",null,null,null,null,null,null,null,null,null,null,"",null,null,null,null,null,null,null,null,"","","","","",1,"","","","","","","","","","","","","","","","","","","","","","","","","","","","","","","","","",""]
[29,null,null,"",null,null,null,null,null,null,null,null,null,null,null,null,null,null,null,null,null,null,null,null,null,null,null,null,null,null,null,null,null,null,null,null,null,null,null,null,null,null,null,null,null,null,null,null,null,"",null,null,null,null,null,null,null,null,null,null,null,null,null,null,null,null,null,null,null,null,null,null,null,null,null,null,null,null,null,null,null,null,null,null,null,null,null,null,null,null,null,null,null,null,null,null,null,null,null,null,null,null,null,null,null,null,null,null,null,null,null,null,null,null,null,null,null,null,null,null,null,null,null,null,null,null,null,null,null,null,null,null,null,null,null,null,null,null,null,null,null,null,null,null,null,null,"",null,null,null,null,null,null,null,null,null,null,"",null,null,null,null,null,null,null,null,null,null,"",null,null,null,null,null,null,null,null,null,null,"",null,null,null,null,null,null,null,null,"","","","","",1,"","","","","","","","","","","","","","","","","","","","","","","","","","","","","","","","","",""]
[30,null,null,"",null,null,null,null,null,null,null,null,null,null,null,null,null,null,null,null,null,null,null,null,null,null,null,null,null,null,null,null,null,null,null,null,null,null,null,null,null,null,null,null,null,null,null,null,null,"",null,null,null,null,null,null,null,null,null,null,null,null,null,null,null,null,null,null,null,null,null,null,null,null,null,null,null,null,null,null,null,null,null,null,null,null,null,null,null,null,null,null,null,null,null,null,null,null,null,null,null,null,null,null,null,null,null,null,null,null,null,null,null,null,null,null,null,null,null,null,null,null,null,null,null,null,null,null,null,null,null,null,null,null,null,null,null,null,null,null,null,null,null,null,null,null,"",null,null,null,null,null,null,null,null,null,null,"",null,null,null,null,null,null,null,null,null,null,"",null,null,null,null,null,null,null,null,null,null,"",null,null,null,null,null,null,null,null,"","","","","",1,"","","","","","","","","","","","","","","","","","","","","","","","","","","","","","","","","",""]
[31,null,null,"",null,null,null,null,null,null,null,null,null,null,null,null,null,null,null,null,null,null,null,null,null,null,null,null,null,null,null,null,null,null,null,null,null,null,null,null,null,null,null,null,null,null,null,null,null,"",null,null,null,null,null,null,null,null,null,null,null,null,null,null,null,null,null,null,null,null,null,null,null,null,null,null,null,null,null,null,null,null,null,null,null,null,null,null,null,null,null,null,null,null,null,null,null,null,null,null,null,null,null,null,null,null,null,null,null,null,null,null,null,null,null,null,null,null,null,null,null,null,null,null,null,null,null,null,null,null,null,null,null,null,null,null,null,null,null,null,null,null,null,null,null,null,"",null,null,null,null,null,null,null,null,null,null,"",null,null,null,null,null,null,null,null,null,null,"",null,null,null,null,null,null,null,null,null,null,"",null,null,null,null,null,null,null,null,"","","","","",1,"","","","","","","","","","","","","","","","","","","","","","","","","","","","","","","","","",""]
[32,null,null,"",null,null,null,null,null,null,null,null,null,null,null,null,null,null,null,null,null,null,null,null,null,null,null,null,null,null,null,null,null,null,null,null,null,null,null,null,null,null,null,null,null,null,null,null,null,{"$f":"IF(GM66=1,IF(F66=\"\",\"\",F66),\"\")","v":""},null,null,null,null,null,null,null,null,null,null,null,null,null,null,null,null,null,null,null,null,null,null,null,null,null,null,null,null,null,null,null,null,null,null,null,null,null,null,null,null,null,null,null,null,null,null,null,null,null,null,null,null,null,null,null,null,null,null,null,null,null,null,null,null,null,null,null,null,null,null,null,null,null,null,null,null,null,null,null,null,null,null,null,null,null,null,null,null,null,null,null,null,null,null,null,null,{"$f":"IF(F66=\"\",\"\",F66)","v":""},null,null,null,null,null,null,null,null,null,null,{"$f":"IF(OR(IF(OR(FC66=\"\",FC66=\"無し\"),\"\",1)=1,IF(OR(FE66=\"\",FE66=\"無し\"),\"\",1)=1,IF(OR(FG66=\"\",FG66=\"無し\"),\"\",1)=1,IF(OR(FI66=\"\",FI66=\"無し\"),\"\",1)=1),IF(F66=\"\",\"\",F66),\"\")","v":""},null,null,null,null,null,null,null,null,null,null,{"$f":"IF(OR(IF(OR(FN66=\"\",FN66=\"無し\"),\"\",1)=1,IF(OR(FP66=\"\",FP66=\"無し\"),\"\",1)=1,IF(OR(FR66=\"\",FR66=\"無し\"),\"\",1)=1,IF(OR(FT66=\"\",FT66=\"無し\"),\"\",1)=1),IF(F66=\"\",\"\",F66),\"\")","v":""},null,null,null,null,null,null,null,null,null,null,{"$f":"IF(OR(IF(OR(FY66=\"\",FY66=\"無し\"),\"\",1)=1,IF(OR(GA66=\"\",GA66=\"無し\"),\"\",1)=1,IF(OR(GC66=\"\",GC66=\"無し\"),\"\",1)=1,IF(OR(GE66=\"\",GE66=\"無し\"),\"\",1)=1),IF(F66=\"\",\"\",F66),\"\")","v":""},null,null,null,null,null,null,null,null,"","","","","",1,"","","","","","","","","","","","","","","","","","","","","","","","","","","","","","","","","",""]
[33,null,null,"",null,null,null,null,null,null,null,null,null,null,null,null,null,null,null,null,null,null,null,null,null,null,null,null,null,null,null,null,null,null,null,null,null,null,null,null,null,null,null,null,null,null,null,null,null,"",null,null,null,null,null,null,null,null,null,null,null,null,null,null,null,null,null,null,null,null,null,null,null,null,null,null,null,null,null,null,null,null,null,null,null,null,null,null,null,null,null,null,null,null,null,null,null,null,null,null,null,null,null,null,null,null,null,null,null,null,null,null,null,null,null,null,null,null,null,null,null,null,null,null,null,null,null,null,null,null,null,null,null,null,null,null,null,null,null,null,null,null,null,null,null,null,"",null,null,null,null,null,null,null,null,null,null,"",null,null,null,null,null,null,null,null,null,null,"",null,null,null,null,null,null,null,null,null,null,"",null,null,null,null,null,null,null,null,"","","","","",1,"","","","","","","","","","","","","","","","","","","","","","","","","","","","","","","","","",""]
[34,null,null,"",null,null,null,null,null,null,null,null,null,null,null,null,null,null,null,null,null,null,null,null,null,null,null,null,null,null,null,null,null,null,null,null,null,null,null,null,null,null,null,null,null,null,null,null,null,"",null,null,null,null,null,null,null,null,null,null,null,null,null,null,null,null,null,null,null,null,null,null,null,null,null,null,null,null,null,null,null,null,null,null,null,null,null,null,null,null,null,null,null,null,null,null,null,null,null,null,null,null,null,null,null,null,null,null,null,null,null,null,null,null,null,null,null,null,null,null,null,null,null,null,null,null,null,null,null,null,null,null,null,null,null,null,null,null,null,null,null,null,null,null,null,null,"",null,null,null,null,null,null,null,null,null,null,"",null,null,null,null,null,null,null,null,null,null,"",null,null,null,null,null,null,null,null,null,null,"",null,null,null,null,null,null,null,null,"","","","","",1,"","","","","","","","","","","","","","","","","","","","","","","","","","","","","","","","","",""]
[35,null,null,"",null,null,null,null,null,null,null,null,null,null,null,null,null,null,null,null,null,null,null,null,null,null,null,null,null,null,null,null,null,null,null,null,null,null,null,null,null,null,null,null,null,null,null,null,null,"",null,null,null,null,null,null,null,null,null,null,null,null,null,null,null,null,null,null,null,null,null,null,null,null,null,null,null,null,null,null,null,null,null,null,null,null,null,null,null,null,null,null,null,null,null,null,null,null,null,null,null,null,null,null,null,null,null,null,null,null,null,null,null,null,null,null,null,null,null,null,null,null,null,null,null,null,null,null,null,null,null,null,null,null,null,null,null,null,null,null,null,null,null,null,null,null,"",null,null,null,null,null,null,null,null,null,null,"",null,null,null,null,null,null,null,null,null,null,"",null,null,null,null,null,null,null,null,null,null,"",null,null,null,null,null,null,null,null,"","","","","",1,"","","","","","","","","","","","","","","","","","","","","","","","","","","","","","","","","",""]
[36,null,null,"",null,null,null,null,null,null,null,null,null,null,null,null,null,null,null,null,null,null,null,null,null,null,null,null,null,null,null,null,null,null,null,null,null,null,null,null,null,null,null,null,null,null,null,null,null,"",null,null,null,null,null,null,null,null,null,null,null,null,null,null,null,null,null,null,null,null,null,null,null,null,null,null,null,null,null,null,null,null,null,null,null,null,null,null,null,null,null,null,null,null,null,null,null,null,null,null,null,null,null,null,null,null,null,null,null,null,null,null,null,null,null,null,null,null,null,null,null,null,null,null,null,null,null,null,null,null,null,null,null,null,null,null,null,null,null,null,null,null,null,null,null,null,"",null,null,null,null,null,null,null,null,null,null,"",null,null,null,null,null,null,null,null,null,null,"",null,null,null,null,null,null,null,null,null,null,"",null,null,null,null,null,null,null,null,"","","","","",1,"","","","","","","","","","","","","","","","","","","","","","","","","","","","","","","","","",""]
[37,null,null,"",null,null,null,null,null,null,null,null,null,null,null,null,null,null,null,null,null,null,null,null,null,null,null,null,null,null,null,null,null,null,null,null,null,null,null,null,null,null,null,null,null,null,null,null,null,"",null,null,null,null,null,null,null,null,null,null,null,null,null,null,null,null,null,null,null,null,null,null,null,null,null,null,null,null,null,null,null,null,null,null,null,null,null,null,null,null,null,null,null,null,null,null,null,null,null,null,null,null,null,null,null,null,null,null,null,null,null,null,null,null,null,null,null,null,null,null,null,null,null,null,null,null,null,null,null,null,null,null,null,null,null,null,null,null,null,null,null,null,null,null,null,null,"",null,null,null,null,null,null,null,null,null,null,"",null,null,null,null,null,null,null,null,null,null,"",null,null,null,null,null,null,null,null,null,null,"",null,null,null,null,null,null,null,null,"","","","","",1,"","","","","","","","","","","","","","","","","","","","","","","","","","","","","","","","","",""]
[38,null,null,"",null,null,null,null,null,null,null,null,null,null,null,null,null,null,null,null,null,null,null,null,null,null,null,null,null,null,null,null,null,null,null,null,null,null,null,null,null,null,null,null,null,null,null,null,null,"",null,null,null,null,null,null,null,null,null,null,null,null,null,null,null,null,null,null,null,null,null,null,null,null,null,null,null,null,null,null,null,null,null,null,null,null,null,null,null,null,null,null,null,null,null,null,null,null,null,null,null,null,null,null,null,null,null,null,null,null,null,null,null,null,null,null,null,null,null,null,null,null,null,null,null,null,null,null,null,null,null,null,null,null,null,null,null,null,null,null,null,null,null,null,null,null,"",null,null,null,null,null,null,null,null,null,null,"",null,null,null,null,null,null,null,null,null,null,"",null,null,null,null,null,null,null,null,null,null,"",null,null,null,null,null,null,null,null,"","","","","",1,"","","","","","","","","","","","","","","","","","","","","","","","","","","","","","","","","",""]
[39,null,null,"",null,null,null,null,null,null,null,null,null,null,null,null,null,null,null,null,null,null,null,null,null,null,null,null,null,null,null,null,null,null,null,null,null,null,null,null,null,null,null,null,null,null,null,null,null,"",null,null,null,null,null,null,null,null,null,null,null,null,null,null,null,null,null,null,null,null,null,null,null,null,null,null,null,null,null,null,null,null,null,null,null,null,null,null,null,null,null,null,null,null,null,null,null,null,null,null,null,null,null,null,null,null,null,null,null,null,null,null,null,null,null,null,null,null,null,null,null,null,null,null,null,null,null,null,null,null,null,null,null,null,null,null,null,null,null,null,null,null,null,null,null,null,"",null,null,null,null,null,null,null,null,null,null,"",null,null,null,null,null,null,null,null,null,null,"",null,null,null,null,null,null,null,null,null,null,"",null,null,null,null,null,null,null,null,"","","","","",1,"","","","","","","","","","","","","","","","","","","","","","","","","","","","","","","","","",""]
[40,null,null,"",null,null,null,null,null,null,null,null,null,null,null,null,null,null,null,null,null,null,null,null,null,null,null,null,null,null,null,null,null,null,null,null,null,null,null,null,null,null,null,null,null,null,null,null,null,"",null,null,null,null,null,null,null,null,null,null,null,null,null,null,null,null,null,null,null,null,null,null,null,null,null,null,null,null,null,null,null,null,null,null,null,null,null,null,null,null,null,null,null,null,null,null,null,null,null,null,null,null,null,null,null,null,null,null,null,null,null,null,null,null,null,null,null,null,null,null,null,null,null,null,null,null,null,null,null,null,null,null,null,null,null,null,null,null,null,null,null,null,null,null,null,null,"",null,null,null,null,null,null,null,null,null,null,"",null,null,null,null,null,null,null,null,null,null,"",null,null,null,null,null,null,null,null,null,null,"",null,null,null,null,null,null,null,null,"","","","","",1,"","","","","","","","","","","","","","","","","","","","","","","","","","","","","","","","","",""]
[41,null,null,"",null,null,null,null,null,null,null,null,null,null,null,null,null,null,null,null,null,null,null,null,null,null,null,null,null,null,null,null,null,null,null,null,null,null,null,null,null,null,null,null,null,null,null,null,null,"",null,null,null,null,null,null,null,null,null,null,null,null,null,null,null,null,null,null,null,null,null,null,null,null,null,null,null,null,null,null,null,null,null,null,null,null,null,null,null,null,null,null,null,null,null,null,null,null,null,null,null,null,null,null,null,null,null,null,null,null,null,null,null,null,null,null,null,null,null,null,null,null,null,null,null,null,null,null,null,null,null,null,null,null,null,null,null,null,null,null,null,null,null,null,null,null,"",null,null,null,null,null,null,null,null,null,null,"",null,null,null,null,null,null,null,null,null,null,"",null,null,null,null,null,null,null,null,null,null,"",null,null,null,null,null,null,null,null,"","","","","",1,"","","","","","","","","","","","","","","","","","","","","","","","","","","","","","","","","",""]
[42,null,null,"",null,null,null,null,null,null,null,null,null,null,null,null,null,null,null,null,null,null,null,null,null,null,null,null,null,null,null,null,null,null,null,null,null,null,null,null,null,null,null,null,null,null,null,null,null,"",null,null,null,null,null,null,null,null,null,null,null,null,null,null,null,null,null,null,null,null,null,null,null,null,null,null,null,null,null,null,null,null,null,null,null,null,null,null,null,null,null,null,null,null,null,null,null,null,null,null,null,null,null,null,null,null,null,null,null,null,null,null,null,null,null,null,null,null,null,null,null,null,null,null,null,null,null,null,null,null,null,null,null,null,null,null,null,null,null,null,null,null,null,null,null,null,"",null,null,null,null,null,null,null,null,null,null,"",null,null,null,null,null,null,null,null,null,null,"",null,null,null,null,null,null,null,null,null,null,"",null,null,null,null,null,null,null,null,"","","","","",1,"","","","","","","","","","","","","","","","","","","","","","","","","","","","","","","","","",""]
[43,null,null,"",null,null,null,null,null,null,null,null,null,null,null,null,null,null,null,null,null,null,null,null,null,null,null,null,null,null,null,null,null,null,null,null,null,null,null,null,null,null,null,null,null,null,null,null,null,"",null,null,null,null,null,null,null,null,null,null,null,null,null,null,null,null,null,null,null,null,null,null,null,null,null,null,null,null,null,null,null,null,null,null,null,null,null,null,null,null,null,null,null,null,null,null,null,null,null,null,null,null,null,null,null,null,null,null,null,null,null,null,null,null,null,null,null,null,null,null,null,null,null,null,null,null,null,null,null,null,null,null,null,null,null,null,null,null,null,null,null,null,null,null,null,null,"",null,null,null,null,null,null,null,null,null,null,"",null,null,null,null,null,null,null,null,null,null,"",null,null,null,null,null,null,null,null,null,null,"",null,null,null,null,null,null,null,null,"","","","","",1,"","","","","","","","","","","","","","","","","","","","","","","","","","","","","","","","","",""]
[44,null,null,"",null,null,null,null,null,null,null,null,null,null,null,null,null,null,null,null,null,null,null,null,null,null,null,null,null,null,null,null,null,null,null,null,null,null,null,null,null,null,null,null,null,null,null,null,null,"",null,null,null,null,null,null,null,null,null,null,null,null,null,null,null,null,null,null,null,null,null,null,null,null,null,null,null,null,null,null,null,null,null,null,null,null,null,null,null,null,null,null,null,null,null,null,null,null,null,null,null,null,null,null,null,null,null,null,null,null,null,null,null,null,null,null,null,null,null,null,null,null,null,null,null,null,null,null,null,null,null,null,null,null,null,null,null,null,null,null,null,null,null,null,null,null,"",null,null,null,null,null,null,null,null,null,null,"",null,null,null,null,null,null,null,null,null,null,"",null,null,null,null,null,null,null,null,null,null,"",null,null,null,null,null,null,null,null,"","","","","",1,"","","","","","","","","","","","","","","","","","","","","","","","","","","","","","","","","",""]
[45,null,null,"",null,null,null,null,null,null,null,null,null,null,null,null,null,null,null,null,null,null,null,null,null,null,null,null,null,null,null,null,null,null,null,null,null,null,null,null,null,null,null,null,null,null,null,null,null,"",null,null,null,null,null,null,null,null,null,null,null,null,null,null,null,null,null,null,null,null,null,null,null,null,null,null,null,null,null,null,null,null,null,null,null,null,null,null,null,null,null,null,null,null,null,null,null,null,null,null,null,null,null,null,null,null,null,null,null,null,null,null,null,null,null,null,null,null,null,null,null,null,null,null,null,null,null,null,null,null,null,null,null,null,null,null,null,null,null,null,null,null,null,null,null,null,"",null,null,null,null,null,null,null,null,null,null,"",null,null,null,null,null,null,null,null,null,null,"",null,null,null,null,null,null,null,null,null,null,"",null,null,null,null,null,null,null,null,"","","","","",1,"","","","","","","","","","","","","","","","","","","","","","","","","","","","","","","","","",""]
[46,null,null,"",null,null,null,null,null,null,null,null,null,null,null,null,null,null,null,null,null,null,null,null,null,null,null,null,null,null,null,null,null,null,null,null,null,null,null,null,null,null,null,null,null,null,null,null,null,"",null,null,null,null,null,null,null,null,null,null,null,null,null,null,null,null,null,null,null,null,null,null,null,null,null,null,null,null,null,null,null,null,null,null,null,null,null,null,null,null,null,null,null,null,null,null,null,null,null,null,null,null,null,null,null,null,null,null,null,null,null,null,null,null,null,null,null,null,null,null,null,null,null,null,null,null,null,null,null,null,null,null,null,null,null,null,null,null,null,null,null,null,null,null,null,null,"",null,null,null,null,null,null,null,null,null,null,"",null,null,null,null,null,null,null,null,null,null,"",null,null,null,null,null,null,null,null,null,null,"",null,null,null,null,null,null,null,null,"","","","","",1,"","","","","","","","","","","","","","","","","","","","","","","","","","","","","","","","","",""]
[47,null,null,"",null,null,null,null,null,null,null,null,null,null,null,null,null,null,null,null,null,null,null,null,null,null,null,null,null,null,null,null,null,null,null,null,null,null,null,null,null,null,null,null,null,null,null,null,null,"",null,null,null,null,null,null,null,null,null,null,null,null,null,null,null,null,null,null,null,null,null,null,null,null,null,null,null,null,null,null,null,null,null,null,null,null,null,null,null,null,null,null,null,null,null,null,null,null,null,null,null,null,null,null,null,null,null,null,null,null,null,null,null,null,null,null,null,null,null,null,null,null,null,null,null,null,null,null,null,null,null,null,null,null,null,null,null,null,null,null,null,null,null,null,null,null,"",null,null,null,null,null,null,null,null,null,null,"",null,null,null,null,null,null,null,null,null,null,"",null,null,null,null,null,null,null,null,null,null,"",null,null,null,null,null,null,null,null,"","","","","",1,"","","","","","","","","","","","","","","","","","","","","","","","","","","","","","","","","",""]
[48,null,null,"",null,null,null,null,null,null,null,null,null,null,null,null,null,null,null,null,null,null,null,null,null,null,null,null,null,null,null,null,null,null,null,null,null,null,null,null,null,null,null,null,null,null,null,null,null,"",null,null,null,null,null,null,null,null,null,null,null,null,null,null,null,null,null,null,null,null,null,null,null,null,null,null,null,null,null,null,null,null,null,null,null,null,null,null,null,null,null,null,null,null,null,null,null,null,null,null,null,null,null,null,null,null,null,null,null,null,null,null,null,null,null,null,null,null,null,null,null,null,null,null,null,null,null,null,null,null,null,null,null,null,null,null,null,null,null,null,null,null,null,null,null,null,"",null,null,null,null,null,null,null,null,null,null,"",null,null,null,null,null,null,null,null,null,null,"",null,null,null,null,null,null,null,null,null,null,"",null,null,null,null,null,null,null,null,"","","","","",1,"","","","","","","","","","","","","","","","","","","","","","","","","","","","","","","","","",""]
[49,null,null,"",null,null,null,null,null,null,null,null,null,null,null,null,null,null,null,null,null,null,null,null,null,null,null,null,null,null,null,null,null,null,null,null,null,null,null,null,null,null,null,null,null,null,null,null,null,"",null,null,null,null,null,null,null,null,null,null,null,null,null,null,null,null,null,null,null,null,null,null,null,null,null,null,null,null,null,null,null,null,null,null,null,null,null,null,null,null,null,null,null,null,null,null,null,null,null,null,null,null,null,null,null,null,null,null,null,null,null,null,null,null,null,null,null,null,null,null,null,null,null,null,null,null,null,null,null,null,null,null,null,null,null,null,null,null,null,null,null,null,null,null,null,null,"",null,null,null,null,null,null,null,null,null,null,"",null,null,null,null,null,null,null,null,null,null,"",null,null,null,null,null,null,null,null,null,null,"",null,null,null,null,null,null,null,null,"","","","","",1,"","","","","","","","","","","","","","","","","","","","","","","","","","","","","","","","","",""]
[50,null,null,"",null,null,null,null,null,null,null,null,null,null,null,null,null,null,null,null,null,null,null,null,null,null,null,null,null,null,null,null,null,null,null,null,null,null,null,null,null,null,null,null,null,null,null,null,null,"",null,null,null,null,null,null,null,null,null,null,null,null,null,null,null,null,null,null,null,null,null,null,null,null,null,null,null,null,null,null,null,null,null,null,null,null,null,null,null,null,null,null,null,null,null,null,null,null,null,null,null,null,null,null,null,null,null,null,null,null,null,null,null,null,null,null,null,null,null,null,null,null,null,null,null,null,null,null,null,null,null,null,null,null,null,null,null,null,null,null,null,null,null,null,null,null,"",null,null,null,null,null,null,null,null,null,null,"",null,null,null,null,null,null,null,null,null,null,"",null,null,null,null,null,null,null,null,null,null,"",null,null,null,null,null,null,null,null,"","","","",{"$f":"IF(AT84<>\"\",1,\"\")","v":""},1,"","","","","","","","","","","","","","","","","","","","","","","","","","","","","","","","","",""]

{"sheet":"マスターシート","index":2,"n_rows":19,"n_cols":36,"rows_kept":19,"cut":false,"hidden":true,"merged":[]}
[]
[null,"チェックＢＯＸ","免震構造物","共用排水","地盤調査方法","直接基礎_構造方法","直接基礎_形式","杭種","選択","選択○×","界床","避難器具種類","躯体天井","異なる天井","変更障害","地域区分","開口部住戸位置","出入口","排煙形式","平面形状","等級0_2","等級0_3","等級0_4","等級0_5",null,"等級1_2","等級1_3","等級1_4","等級1_5","等級_320","等級1_8","スラブ厚","温熱環境に関すること","等級5_2","重量床衝撃音対策","軽量床衝撃音対策"]
[null,"□"]
[null,"■","免震建築物","共用廊下に面する共用部分","標準貫入試験","鉄筋コンクリート造","ベタ基礎","支持杭","○","○","なし","避難はしご","地上","該当なし","なし","Ⅰ","地下","有効","a.開放型廊下","a.２方向避難",2,3,4,5,null,2,3,5,5,3,8,0,"熱損失係数",6,"対策等級","対策等級"]
[null,null,"その他","外壁面、吹き抜け等の住戸外周部","スウェーデン式サウンディング試験","直接基礎","独立基礎","摩擦杭",null,"×","上階","滑り棒","地下","はり","壁","Ⅱ","地上","シャッター","b.自然排煙","b.直通階段",1,2,3,4,null,1,2,4,4,2,7,"a","熱貫流率",5,"相当スラブ厚","レベル低減量"]
[null,null,null,"バルコニー","スクリューウエイト貫入試験","SB工法","布基礎",null,null,null,"下階","避難ロープ","その他","傾斜屋根","柱","Ⅲ","屋上","その他","c.機械排煙(一般)","c.その他",0,1,2,3,null,null,1,3,3,0,6,"b",null,4]
[null,null,null,"住戸専用部","平板載荷試験",null,null,null,null,null,"上階及び下階","避難用タラップ",null,"その他","壁柱","Ⅳ","中間階","無し","d.機械排煙(加圧式)",null,null,0,1,2,null,null,null,2,2,null,5,"c",null,1]
[null,null,null,"その他","表面波探査法 ",null,null,null,null,null,null,"滑り台",null,null,null,"Ⅴ","その他",null,"e.その他",null,null,null,0,1,null,null,null,1,1,null,4,"d",null,null,"ｲ：対策等級","ｲ：対策等級"]
[null,null,null,null,null,null,null,null,null,null,null,"緩降機",null,null,null,"Ⅵ",null,null,null,null,null,null,null,0,null,null,null,null,null,null,3,"e",null,null,"ﾛ：相当スラブ厚","ﾛ：レベル低減量"]
[null,null,null,null,null,null,null,null,null,null,null,"避難橋",null,null,null,null,null,null,null,null,null,null,null,null,null,null,null,null,null,null,2]
[null,null,null,null,null,null,null,null,null,null,null,"救助袋",null,null,null,null,null,null,null,null,null,null,null,null,null,null,null,null,null,null,1]
[]
["自己評価書で不要になって移動したセル名："]
[]
["work_tower_N01_6_JIBAN_TYOUSA_2"]
[]
["work_tower_N01_6_JIBAN_TYOUSA_3"]
[]
["work_tower_N01_6_JIBAN_TYOUSA_4"]